Workbook

Sheet board room
A1: PROJECT NUMBER | B1: x1610
A2: PROJECT NAME | B2: 16060 westminster
A3: INPUT BY | B3: XT | E3: Newfoundland
A4: DATE | B4: 2016-12-03
A5: City | B5: North Vancouver | D5: =VLOOKUP(B5,WeatherData,2,FALSE ) -> BC
A6: Latitude | B6: =VLOOKUP(B5,WeatherData,23,FALSE ) -> 49.32 | C6: N | D6: Lfactor | E6: =1+(B6-40)*0.0375 -> 1.3495
A7: Winter Design Temp. | B7: =D7 -> -7 | C7: degC | D7: =VLOOKUP(B5,WeatherData,4,FALSE ) -> -7
A8: Summer Design Temp | B8: =D8 -> 26 | C8: degC | D8: =VLOOKUP(B5,WeatherData,5,FALSE ) -> 26
A9: Wall Type | B9: Wall Type 3
A10: Wall R value | B10: =D10*0.176 -> 2.64 | C10: m2/oC/Watt | D10: =VLOOKUP(B9,Wall_R_value!B2:D13,2,FALSE) -> 15 | E10: R-Value
A11: Window Type | B11: Window Type 2
A12: Window R value | B12: =D12*0.175 -> 0.35 | C12: m2/oC/Watt | D12: =VLOOKUP(B11,WindowData,3,FALSE) -> 2 | E12: R-Value | F12: SHGC | G12: 0.33
A13: Roof Type | B13: Roof Type 6
A14: Roof R Value | B14: =D14*0.175 -> 5.25 | C14: m2/oC/Watt | D14: =VLOOKUP(B13,RoofData,2,FALSE) -> 30 | E14: R-Value
A15: Floor Height | B15: 3 | C15: meter
A16: Room temp _Winter | B16: 22 | C16: degC
A17: Room Temp_Summer | B17: 24 | C17: degC
A19: Heating / Cooling Load Calculation
A21: ROOM NO. | C21: Kitchen
C22: Winter | E22: Summer
A23: Room Temperature | C23: 22 | D23: degC | E23: =$B$17 -> 24 | F23: degC
A24: Temperature difference | C24: =OT-RoomT -> -29 | D24: degC | E24: =OT_Summer-E23 -> 2 | F24: degC
A25: Envelope-Wall
A26: Wall 1 | G26: Wall 2
A27: Wall dimension | B27: Length | C27: 9.090909091 | D27: m | E27: 12 | F27: ft | G27: Wall dimension | H27: Length | I27: 13.33333333 | J27: m | K27: 27 | L27: ft
B28: Height | C28: 3.03030303 | D28: m | E28: 10 | F28: ft | H28: Height | I28: 3.03030303 | J28: m | K28: 10 | L28: ft
B29: Area | C29: 27.54820937 | D29: m2 | E29: 300 | F29: sqft | H29: Area | I29: 40.4040404 | J29: m2 | K29: 440 | L29: sqft
A30: Wall R Value | B30: R value | C30: 2.625 | D30: m2/oC/Watt | E30: 15 | F30: R-Value | G30: Wall R Value | H30: R value | I30: 2.625 | J30: m2/oC/Watt | K30: 15 | L30: R-Value
B31: U value | C31: 0.380952381 | D31: Watt/m2/oC | E31: 0.06666666667 | F31: 1/R | H31: U value | I31: 0.380952381 | J31: Watt/m2/oC | K31: 0.06666666667 | L31: 1/R
A32: Wall Direction | B32: Angle | C32: 0 | D32: Degree | G32: Wall Direction | H32: Angle | I32: 90 | J32: Degree
A33: Window dimension | B33: Length | C33: 1.515151515 | D33: m | E33: 10 | F33: ft | G33: Window dimension | H33: Length | I33: 2.424242424 | J33: m | K33: 0 | L33: ft
B34: Height | C34: 1.212121212 | D34: m | E34: 5 | F34: ft | H34: Height | I34: 1.212121212 | J34: m | K34: 0 | L34: ft
B35: Amount | C35: 4 | D35: # | E35: 1 | F35: # | H35: Amount | I35: 3 | J35: # | K35: 0 | L35: #
B36: Area | C36: 7.346189164 | D36: m2 | E36: 80 | F36: sqft | H36: Area | I36: 8.815426997 | J36: m2 | K36: 96 | L36: sqft
A37: Window Thermal | B37: R value | C37: 0.4375 | D37: m2/oC/Watt | E37: 2.5 | F37: R-Value | G37: Window Thermal | H37: R value | I37: 0.4375 | J37: m2/oC/Watt | K37: 2.5 | L37: R-Value
B38: U value | C38: 2.285714286 | D38: Watt/m2/oC | E38: 0.4 | F38: 1/R | H38: U value | I38: 2.285714286 | J38: Watt/m2/oC | K38: 0.4 | L38: 1/R
B39: SHGC | C39: 0.65 | H39: SHGC | I39: 0.65
B40: Solar0 | C40: 93 | D40: watt/m2 | H40: Solar0 | I40: 285 | J40: watt/m2
B41: SolarCorrect | C41: -6.7 | D41: degC | H41: SolarCorrect | I41: -1.1 | J41: degC
B42: Shading Factor | C42: 0.5 | H42: Shading Factor | I42: 0.5
A43: Act. Wall | B43: Area | C43: 20.2020202 | D43: m2 | G43: Act. Wall | H43: Area | I43: 31.58861341 | J43: m2
A44: Heating | G44: Heating
A45: Wall Heat Loss | C45: =C31*C43*(OT-RoomT) -> -223.1842232 | D45: watt | E45: =2.3*3*(1/2.1)*(22+30) -> 170.8571429 | G45: Wall Heat Loss | I45: =I31*I43*(OT-RoomT) -> -348.9789672 | J45: watt
A46: Window Heat Loss | C46: =C36*C38*(OT-RoomT) -> -486.947396 | D46: watt | G46: Window Heat Loss | I46: =I36*I38*(OT-RoomT) -> -584.3368752 | J46: watt
A47: Cooling | G47: Cooling
A48: Wall Heat Gain | C48: =C43*C31*($E$24+C41) -> -36.17123617 | D48: watt | G48: Wall Heat Gain | I48: =I43*I31*($E$24-I41) -> 37.30464821 | J48: watt
A49: Window Heat Gain | C49: =C36*C39*C40+C36*C38*$E$24 -> 477.659714 | D49: watt | G49: Window Heat Gain | I49: =I36*I39*I40+I36*I38*$E$24 -> 1673.356946 | J49: watt
A50: Envelope-Roof | G50: Ventilation
A51: Roof | G51: HRV effectiveness | I51: 0
A52: Roof dimension | B52: Length | C52: =E52/3.3 -> 3.636363636 | D52: m | E52: 12 | F52: ft | G52: Venting Rate | I52: =K52/2.12 -> 18.86792453 | J52: L/s | K52: 40 | L52: CFM
B53: Width | C53: 9.090909091 | D53: m | E53: 27 | F53: ft | G53: Venting Heating | I53: =I52*1.2*C24*(1-I51) -> -656.6037736 | J53: watt
B54: Area | C54: =C53*C52 -> 33.05785124 | D54: m2 | G54: Venting Cooling | I54: =I52*1.2*E24*(1-I51) -> 45.28301887 | J54: watt
A55: Roof R Value | B55: R value | C55: =E55*0.175 -> 5.25 | D55: m2/oC/Watt | E55: =$D$14 -> 30 | F55: R-Value | G55: Volumn | H55: =B78*B15 -> 99.17355372 | I55: m3
B56: U value | C56: =1/C55 -> 0.1904761905 | D56: Watt/m2/oC | E56: =1/E55 -> 0.03333333333 | F56: 1/R | G56: Air Change | H56: =I52*3600/1000/H55 -> 0.6849056604 | I56: per Hr
B57: Angle | C57: Flat | D57: Degree | G57: People
A58: Sky Light dimension | B58: Length | C58: 0 | D58: m | G58: Person Amount | H58: 10 | I58: # | J58: 164 | K58: watt per Person
B59: Height | C59: 0 | D59: m | G59: People heat | H59: =J58*H58 -> 1640 | I59: watt
B60: Amount | C60: 0 | D60: # | G60: Lighting
B61: Area | C61: =C58*C59*C60 -> 0 | D61: m2 | G61: Light Density | H61: 1.5 | I61: w/m2
A62: Window Thermal | B62: R value | C62: =E62*0.175 -> 0.35 | D62: m2/oC/Watt | E62: =$D$12 -> 2 | F62: R-Value | G62: Light heat | H62: =H61*B78 -> 49.58677686 | I62: watt
B63: U value | C63: =1/C62 -> 2.857142857 | D63: Watt/m2/oC | E63: =1/E62 -> 0.5 | F63: 1/R
B64: SHGC | C64: =$G$12 -> 0.33
B65: Solar0 | C65: =VLOOKUP(C57,[0]!SolarCorrection,2, FALSE) -> 534 | D65: watt/m2
B66: SolarCorrect | C66: =VLOOKUP(C57,[0]!SolarCorrection,4, FALSE) -> -6.1 | D66: degC | M66: Wall | N66: =C45+I45 -> -572.1631903 | O66: =N66/$N$70 -> 0.230464097
B67: Shading Factor | C67: 0.5 | M67: Window | N67: =C46+I46 -> -1071.284271 | O67: =N67/$N$70 -> 0.4315072454
A68: Act. Wall | B68: Area | C68: =C54-C61 -> 33.05785124 | D68: m2 | M68: Roof | N68: =C70 -> -182.6052735 | O68: =N68/$N$70 -> 0.07355237137
A69: Heating | M69: Vent | N69: =I53 -> -656.6037736 | O69: =N69/$N$70 -> 0.2644762863
A70: Roof Heat Loss | C70: =C56*C68*(OT-RoomT) -> -182.6052735 | D70: watt | M70: Total | N70: =SUM(N66:N69) -> -2482.656509 | O70: =N70/$N$70 -> 1
A71: Skylight Heat Loss | C71: =C61*C63*(OT-RoomT) -> 0 | D71: watt
A72: Cooling
A73: Roof Heat Gain | C73: =C68*C56*($E$24+C66) -> -25.81660763 | D73: watt
A74: Skylight Heat Gain | C74: =C61*C64*C65+C61*C63*$E$24 -> 0 | D74: watt
A76: Room Heating Load | B76: =C70+I45+C45+I46+C46+I53+O45+O46 -> -2482.656509 | C76: watt | D76: Room Cooling Load | F76: =C48+C49+I48+I49+C73+C74+I54+H59+H62+O45+O46 -> 3861.20326 | G76: watt
A77: Eningeering check | B77: =B76/B78 -> -75.10035939 | C77: watt/m2 | D77: Eningeering check | F77: =F76/B78 -> 116.8013986 | G77: watt/m2
A78: Room Area | B78: =C52*C53 -> 33.05785124 | C78: m2

Sheet staff and taste
A1: PROJECT NUMBER | B1: x1610
A2: PROJECT NAME | B2: 16060 westminster
A3: INPUT BY | B3: XT | E3: Manitoba
A4: DATE | B4: 2016-12-03
A5: City | B5: Richmond | D5: =VLOOKUP(B5,WeatherData,2,FALSE ) -> BC
A6: Latitude | B6: =VLOOKUP(B5,WeatherData,23,FALSE ) -> 49.17 | C6: N | D6: Lfactor | E6: =1+(B6-40)*0.0375 -> 1.343875
A7: Winter Design Temp. | B7: -10 | C7: degC
A8: Summer Design Temp | B8: 30 | C8: degC
A9: Wall Type | B9: Wall Type 3
A10: Wall R value | B10: =D10*0.176 -> 2.64 | C10: m2/oC/Watt | D10: =VLOOKUP(B9,Wall_R_value!B2:D13,2,FALSE) -> 15 | E10: R-Value
A11: Window Type | B11: Window Type 2
A12: Window R value | B12: =D12*0.175 -> 0.35 | C12: m2/oC/Watt | D12: =VLOOKUP(B11,WindowData,3,FALSE) -> 2 | E12: R-Value | F12: SHGC | G12: 0.33
A13: Roof Type | B13: Roof Type 6
A14: Roof R Value | B14: =D14*0.175 -> 5.25 | C14: m2/oC/Watt | D14: =VLOOKUP(B13,RoofData,2,FALSE) -> 30 | E14: R-Value
A15: Floor Height | B15: 3 | C15: meter
A16: Room temp _Winter | B16: 22 | C16: degC
A17: Room Temp_Summer | B17: 24 | C17: degC
A19: Heating / Cooling Load Calculation
A21: ROOM NO. | C21: Kitchen
C22: Winter | E22: Summer
A23: Room Temperature | C23: 22 | D23: degC | E23: =$B$17 -> 24 | F23: degC
A24: Temperature difference | C24: =OT-RoomT -> -32 | D24: degC | E24: =OT_Summer-E23 -> 6 | F24: degC
A25: Envelope-Wall
A26: Wall 1 | G26: Wall 2 | M26: Wall 3
A27: Wall dimension | B27: Length | C27: 9.090909091 | D27: m | E27: 30 | F27: ft | G27: Wall dimension | H27: Length | I27: 13.33333333 | J27: m | K27: 44 | L27: ft | M27: Wall dimension | N27: Length | O27: 9.090909091 | P27: m | Q27: 30 | R27: ft
B28: Height | C28: 3.03030303 | D28: m | E28: 10 | F28: ft | H28: Height | I28: 3.03030303 | J28: m | K28: 10 | L28: ft | N28: Height | O28: 3.03030303 | P28: m | Q28: 10 | R28: ft
B29: Area | C29: 27.54820937 | D29: m2 | E29: 300 | F29: sqft | H29: Area | I29: 40.4040404 | J29: m2 | K29: 440 | L29: sqft | N29: Area | O29: 27.54820937 | P29: m2 | Q29: 300 | R29: sqft
A30: Wall R Value | B30: R value | C30: 2.625 | D30: m2/oC/Watt | E30: 15 | F30: R-Value | G30: Wall R Value | H30: R value | I30: 2.625 | J30: m2/oC/Watt | K30: 15 | L30: R-Value | M30: Wall R Value | N30: R value | O30: 2.625 | P30: m2/oC/Watt | Q30: 15 | R30: R-Value
B31: U value | C31: 0.380952381 | D31: Watt/m2/oC | E31: 0.06666666667 | F31: 1/R | H31: U value | I31: 0.380952381 | J31: Watt/m2/oC | K31: 0.06666666667 | L31: 1/R | N31: U value | O31: 0.380952381 | P31: Watt/m2/oC | Q31: 0.06666666667 | R31: 1/R
A32: Wall Direction | B32: Angle | C32: 0 | D32: Degree | G32: Wall Direction | H32: Angle | I32: 90 | J32: Degree | M32: Wall Direction | N32: Angle | O32: 270 | P32: Degree
A33: Window dimension | B33: Length | C33: 1.515151515 | D33: m | E33: 5 | F33: ft | G33: Window dimension | H33: Length | I33: 2.424242424 | J33: m | K33: 8 | L33: ft | M33: Window dimension | N33: Length | O33: 2.424242424 | P33: m | Q33: 8 | R33: ft
B34: Height | C34: 1.212121212 | D34: m | E34: 4 | F34: ft | H34: Height | I34: 1.212121212 | J34: m | K34: 4 | L34: ft | N34: Height | O34: 1.515151515 | P34: m | Q34: 5 | R34: ft
B35: Amount | C35: 4 | D35: # | E35: 4 | F35: # | H35: Amount | I35: 3 | J35: # | K35: 3 | L35: # | N35: Amount | O35: 2.5 | P35: # | Q35: 2.5 | R35: #
B36: Area | C36: 7.346189164 | D36: m2 | E36: 80 | F36: sqft | H36: Area | I36: 8.815426997 | J36: m2 | K36: 96 | L36: sqft | N36: Area | O36: 9.182736455 | P36: m2 | Q36: 100 | R36: sqft
A37: Window Thermal | B37: R value | C37: 0.4375 | D37: m2/oC/Watt | E37: 2.5 | F37: R-Value | G37: Window Thermal | H37: R value | I37: 0.4375 | J37: m2/oC/Watt | K37: 2.5 | L37: R-Value | M37: Window Thermal | N37: R value | O37: 0.4375 | P37: m2/oC/Watt | Q37: 2.5 | R37: R-Value
B38: U value | C38: 2.285714286 | D38: Watt/m2/oC | E38: 0.4 | F38: 1/R | H38: U value | I38: 2.285714286 | J38: Watt/m2/oC | K38: 0.4 | L38: 1/R | N38: U value | O38: 2.285714286 | P38: Watt/m2/oC | Q38: 0.4 | R38: 1/R
B39: SHGC | C39: 0.65 | H39: SHGC | I39: 0.65 | N39: SHGC | O39: 0.65
B40: Solar0 | C40: 93 | D40: watt/m2 | H40: Solar0 | I40: 285 | J40: watt/m2 | N40: Solar0 | O40: 285 | P40: watt/m2
B41: SolarCorrect | C41: -6.7 | D41: degC | H41: SolarCorrect | I41: -1.1 | J41: degC | N41: SolarCorrect | O41: -1.1 | P41: degC
B42: Shading Factor | C42: 0.5 | H42: Shading Factor | I42: 0.5 | N42: Shading Factor | O42: 0.5
A43: Act. Wall | B43: Area | C43: 20.2020202 | D43: m2 | G43: Act. Wall | H43: Area | I43: 31.58861341 | J43: m2 | M43: Act. Wall | N43: Area | O43: 18.36547291 | P43: m2
A44: Heating | G44: Heating | M44: Heating
A45: Wall Heat Loss | C45: =C31*C43*(OT-RoomT) -> -246.2722463 | D45: watt | E45: =2.3*3*(1/2.1)*(22+30) -> 170.8571429 | G45: Wall Heat Loss | I45: =I31*I43*(OT-RoomT) -> -385.0802396 | J45: watt | M45: Wall Heat Loss | O45: -209.891119 | P45: watt
A46: Window Heat Loss | C46: =C36*C38*(OT-RoomT) -> -537.3212646 | D46: watt | G46: Window Heat Loss | I46: =I36*I38*(OT-RoomT) -> -644.7855175 | J46: watt | M46: Window Heat Loss | O46: -629.6733569 | P46: watt
A47: Cooling | G47: Cooling | M47: Cooling
A48: Wall Heat Gain | C48: =C43*C31*($E$24+C41) -> -5.387205387 | D48: watt | G48: Wall Heat Gain | I48: =I43*I31*($E$24-I41) -> 85.43967817 | J48: watt | M48: Wall Heat Gain | O48: 48.27495737 | P48: watt
A49: Window Heat Gain | C49: =C36*C39*C40+C36*C38*$E$24 -> 544.8248721 | D49: watt | G49: Window Heat Gain | I49: =I36*I39*I40+I36*I38*$E$24 -> 1753.955136 | J49: watt | M49: Window Heat Gain | O49: 1869.014824 | P49: watt
A50: Envelope-Roof | G50: Ventilation
A51: Roof | G51: HRV effectiveness | I51: 0
A52: Roof dimension | B52: Length | C52: =E52/3.3 -> 13.33333333 | D52: m | E52: 44 | F52: ft | G52: Venting Rate | I52: =K52/2.12 -> 47.16981132 | J52: L/s | K52: 100 | L52: CFM
B53: Width | C53: =E53/3.3 -> 9.090909091 | D53: m | E53: 30 | F53: ft | G53: Venting Heating | I53: =I52*1.2*C24*(1-I51) -> -1811.320755 | J53: watt
B54: Area | C54: =C53*C52 -> 121.2121212 | D54: m2 | G54: Venting Cooling | I54: =I52*1.2*E24*(1-I51) -> 339.6226415 | J54: watt
A55: Roof R Value | B55: R value | C55: =E55*0.175 -> 5.25 | D55: m2/oC/Watt | E55: =$D$14 -> 30 | F55: R-Value | G55: Volumn | H55: =B78*B15 -> 363.6363636 | I55: m3
B56: U value | C56: =1/C55 -> 0.1904761905 | D56: Watt/m2/oC | E56: =1/E55 -> 0.03333333333 | F56: 1/R | G56: Air Change | H56: =I52*3600/1000/H55 -> 0.4669811321 | I56: per Hr
B57: Angle | C57: Flat | D57: Degree | G57: People
A58: Sky Light dimension | B58: Length | C58: 0 | D58: m | G58: Person Amount | H58: 30 | I58: # | J58: 164 | K58: watt per Person
B59: Height | C59: 0 | D59: m | G59: People heat | H59: =J58*H58 -> 4920 | I59: watt
B60: Amount | C60: 0 | D60: # | G60: Lighting
B61: Area | C61: =C58*C59*C60 -> 0 | D61: m2 | G61: Light Density | H61: 1.5 | I61: w/m2
A62: Window Thermal | B62: R value | C62: =E62*0.175 -> 0.35 | D62: m2/oC/Watt | E62: =$D$12 -> 2 | F62: R-Value | G62: Light heat | H62: =H61*B78 -> 181.8181818 | I62: watt
B63: U value | C63: =1/C62 -> 2.857142857 | D63: Watt/m2/oC | E63: =1/E62 -> 0.5 | F63: 1/R
B64: SHGC | C64: =$G$12 -> 0.33
B65: Solar0 | C65: =VLOOKUP(C57,[0]!SolarCorrection,2, FALSE) -> 534 | D65: watt/m2
B66: SolarCorrect | C66: =VLOOKUP(C57,[0]!SolarCorrection,4, FALSE) -> -6.1 | D66: degC | M66: Wall | N66: =C45+I45 -> -631.3524859 | O66: =N66/$N$70 -> 0.1446862578
B67: Shading Factor | C67: 0.5 | M67: Window | N67: =C46+I46 -> -1182.106782 | O67: =N67/$N$70 -> 0.2709019295
A68: Act. Wall | B68: Area | C68: =C54-C61 -> 121.2121212 | D68: m2 | M68: Roof | N68: =C70 -> -738.8167388 | O68: =N68/$N$70 -> 0.1693137059
A69: Heating | M69: Vent | N69: =I53 -> -1811.320755 | O69: =N69/$N$70 -> 0.4150981068
A70: Roof Heat Loss | C70: =C56*C68*(OT-RoomT) -> -738.8167388 | D70: watt | M70: Total | N70: =SUM(N66:N69) -> -4363.596762 | O70: =N70/$N$70 -> 1
A71: Skylight Heat Loss | C71: =C61*C63*(OT-RoomT) -> 0 | D71: watt
A72: Cooling
A73: Roof Heat Gain | C73: =C68*C56*($E$24+C66) -> -2.308802309 | D73: watt
A74: Skylight Heat Gain | C74: =C61*C64*C65+C61*C63*$E$24 -> 0 | D74: watt
A76: Room Heating Load | B76: =C70+I45+C45+I46+C46+I53+O45+O46 -> -5203.161237 | C76: watt | D76: Room Cooling Load | F76: =C48+C49+I48+I49+C73+C74+I54+H59+H62+O45+O46 -> 6978.400026 | G76: watt
A77: Eningeering check | B77: =B76/B78 -> -42.92608021 | C77: watt/m2 | D77: Eningeering check | F77: =F76/B78 -> 57.57180021 | G77: watt/m2
A78: Room Area | B78: =C52*C53 -> 121.2121212 | C78: m2

Sheet Window

Sheet Summary
G17: 1.5
G18: 1.25
G19: 1
G20: 1.25
G21: 0.5
G22: 0.25
G23: 1.5
G24: 1.5
G25: 1.25
G26: 1
G27: 1.25
G28: 0.5
G29: 0.25
G30: 1.5
F31: sum | G31: =SUM(G17:G30) -> 14.5
G32: =G31*1000/20/7 -> 103.5714286

Sheet Solar
D43: Solar gain | E43: Solar corrections
C44: degree | D44: watt/m2 | E44: below 14 C | F44: over 14 C
B45: North | C45: 0 | D45: 93 | E45: -3.8 | F45: -6.7
B46: Northeast | C46: 45 | D46: 194 | E46: -0.6 | F46: -3.3
B47: East | C47: 90 | D47: 285 | E47: 1.7 | F47: -1.1
B48: Southeast | C48: 135 | D48: 252 | E48: 0.6 | F48: -2.2
B49: South | C49: 180 | D49: 160 | E49: -2.2 | F49: -5
B50: Southwest | C50: 225 | D50: 252 | E50: 0.6 | F50: -2.2
B51: West | C51: 270 | D51: 285 | E51: 1.7 | F51: -1.1
B52: Northwest | C52: 315 | D52: 194 | E52: -0.6 | F52: -3.3
B54: Flat | C54: Flat | D54: 534 | E54: -3.3 | F54: -6.1
C57: Solar=C46:D52

Sheet Weather_Stations
A1: F280 weather data for Spreadsheet project (Interpreted from CSA_F280_Table 5_Final_2012-01-03.xls by Philip Jarrett Environment Canada)
A2: "Jan 16, 2012 (All values rounded to zero decimal places) | F2: (Corrected Jan 16, 2012: Grimsby) | N2: Monthly Air Temperatures (Deg C)
A3: Seq | B3: City | C3: Region | D3: DegDay | E3: DHDBT | F3: DCDBT | G3: Strange | H3: OHR | I3: DGTEMP | J3: JanWind | K3: JulWind | L3: Jan | M3: Feb | N3: Mar | O3: Apr | P3: May | Q3: Jun | R3: Jul | S3: Aug | T3: Sep | U3: Oct | V3: Nov | W3: Dec | X3: Latidude | Y3: Longitude
A4: 1 | B4: Athabasca | C4: AB | D4: 6000 | E4: -35 | F4: 27 | G4: 12 | H4: 11 | I4: 5 | J4: 10 | K4: 10 | L4: -15 | M4: -11 | N4: -4 | O4: 4 | P4: 11 | Q4: 14 | R4: 16 | S4: 15 | T4: 10 | U4: 4 | V4: -6 | W4: -13 | X4: 54.72 | Y4: -113.28 | Z4: AB | AA4: AB | AB4: Alberta
A5: 2 | B5: Banff | C5: AB | D5: 5500 | E5: -31 | F5: 27 | G5: 14 | H5: 7 | I5: 5 | J5: 10 | K5: 8 | L5: -9 | M5: -7 | N5: -3 | O5: 3 | P5: 7 | Q5: 11 | R5: 15 | S5: 14 | T5: 9 | U5: 3 | V5: -4 | W5: -9 | X5: 51.17 | Y5: -115.57 | Z5: BC | AA5: BC | AB5: British Columbia
A6: 3 | B6: Barrhead | C6: AB | D6: 5740 | E6: -33 | F6: 27 | G6: 12 | H6: 11 | I6: 5 | J6: 8 | K6: 9 | L6: -11 | M6: -11 | N6: -6 | O6: 1 | P6: 11 | Q6: 13 | R6: 17 | S6: 13 | T6: 12 | U6: 5 | V6: -3 | W6: -10 | X6: 54.13 | Y6: -114.4 | Z6: MB | AA6: MB | AB6: Manitoba
A7: 4 | B7: Beaverlodge | C7: AB | D7: 5700 | E7: -36 | F7: 28 | G7: 12 | H7: 9 | I7: 5 | J7: 10 | K7: 12 | L7: -13 | M7: -10 | N7: -4 | O7: 4 | P7: 10 | Q7: 13 | R7: 15 | S7: 14 | T7: 10 | U7: 4 | V7: -6 | W7: -11 | X7: 55.22 | Y7: -119.43 | Z7: NB | AA7: NB | AB7: New Brunswick
A8: 5 | B8: Brooks | C8: AB | D8: 4880 | E8: -32 | F8: 32 | G8: 14 | H8: 10 | I8: 7 | J8: 13 | K8: 12 | L8: -11 | M8: -7 | N8: -2 | O8: 6 | P8: 11 | Q8: 16 | R8: 19 | S8: 18 | T8: 13 | U8: 6 | V8: -2 | W8: -7 | X8: 50.58 | Y8: -111.88 | Z8: NL | AA8: NL | AB8: Newfoundland
A9: 6 | B9: Calgary | C9: AB | D9: 5000 | E9: -30 | F9: 28 | G9: 12 | H9: 8 | I9: 6 | J9: 15 | K9: 14 | L9: -7 | M9: -5 | N9: -2 | O9: 5 | P9: 10 | Q9: 14 | R9: 16 | S9: 16 | T9: 11 | U9: 5 | V9: -3 | W9: -6 | X9: 51.05 | Y9: -114.08 | Z9: NS | AA9: NS | AB9: Nova Scotia
A10: 7 | B10: Campsie | C10: AB | D10: 5750 | E10: -33 | F10: 27 | G10: 14 | H10: 11 | I10: 5 | J10: 10 | K10: 12 | L10: -14 | M10: -11 | N10: -4 | O10: 4 | P10: 10 | Q10: 14 | R10: 16 | S10: 15 | T10: 10 | U10: 4 | V10: -6 | W10: -12 | X10: 54.13 | Y10: -114.65 | Z10: NT | AA10: NT | AB10: N.W.T
A11: 8 | B11: Camrose | C11: AB | D11: 5500 | E11: -33 | F11: 29 | G11: 13 | H11: 10 | I11: 5 | J11: 11 | K11: 12 | L11: -14 | M11: -10 | N11: -6 | O11: 4 | P11: 10 | Q11: 14 | R11: 17 | S11: 15 | T11: 10 | U11: 3 | V11: -5 | W11: -10 | X11: 53.02 | Y11: -112.83 | Z11: NU | AA11: NU | AB11: Nunavut
A12: 9 | B12: Canmore | C12: AB | D12: 5400 | E12: -31 | F12: 28 | G12: 14 | H12: 8 | I12: 6 | J12: 10 | K12: 8 | L12: -10 | M12: -7 | N12: -3 | O12: 3 | P12: 7 | Q12: 11 | R12: 15 | S12: 14 | T12: 9 | U12: 3 | V12: -4 | W12: -9 | X12: 51.09 | Y12: -115.35 | Z12: ON | AA12: ON | AB12: Ontario
A13: 10 | B13: Cardston | C13: AB | D13: 4700 | E13: -29 | F13: 30 | G13: 13 | H13: 9 | I13: 7 | J13: 13 | K13: 11 | L13: -5 | M13: -3 | N13: -1 | O13: 5 | P13: 10 | Q13: 14 | R13: 18 | S13: 17 | T13: 12 | U13: 6 | V13: 0 | W13: -3 | X13: 49.2 | Y13: -113.3 | Z13: PE | AA13: PE | AB13: Prince Edward Island
A14: 11 | B14: Claresholm | C14: AB | D14: 4680 | E14: -30 | F14: 30 | G14: 15 | H14: 8 | I14: 6 | J14: 13 | K14: 12 | L14: -8 | M14: -4 | N14: -2 | O14: 5 | P14: 10 | Q14: 14 | R14: 18 | S14: 17 | T14: 12 | U14: 6 | V14: -1 | W14: -5 | X14: 50.03 | Y14: -113.58 | Z14: QC | AA14: QC | AB14: Quebec
A15: 12 | B15: Cold Lake | C15: AB | D15: 5860 | E15: -35 | F15: 28 | G15: 11 | H15: 10 | I15: 4 | J15: 9 | K15: 11 | L15: -16 | M15: -12 | N15: -5 | O15: 4 | P15: 10 | Q15: 15 | R15: 17 | S15: 16 | T15: 10 | U15: 3 | V15: -7 | W15: -13 | X15: 54.45 | Y15: -110.17 | Z15: SK | AA15: SK | AB15: Saskatchewan
A16: 13 | B16: Coleman | C16: AB | D16: 5210 | E16: -31 | F16: 29 | G16: 15 | H16: 8 | I16: 7 | J16: 14 | K16: 10 | L16: -8 | M16: -5 | N16: -1 | O16: 3 | P16: 8 | Q16: 12 | R16: 14 | S16: 14 | T16: 10 | U16: 5 | V16: -3 | W16: -7 | X16: 49.63 | Y16: -114.5 | Z16: YT | AA16: YT | AB16: Yukon Territory
A17: 14 | B17: Coronation | C17: AB | D17: 5640 | E17: -32 | F17: 30 | G17: 13 | H17: 9 | I17: 5 | J17: 17 | K17: 15 | L17: -14 | M17: -12 | N17: -5 | O17: 4 | P17: 10 | Q17: 14 | R17: 17 | S17: 16 | T17: 10 | U17: 4 | V17: -7 | W17: -12 | X17: 52.08 | Y17: -111.45
A18: 15 | B18: Cowley | C18: AB | D18: 4810 | E18: -29 | F18: 29 | G18: 15 | H18: 8 | I18: 6 | J18: 26 | K18: 18 | L18: -10 | M18: -6 | N18: -2 | O18: 3 | P18: 9 | Q18: 13 | R18: 16 | S18: 16 | T18: 10 | U18: 5 | V18: -2 | W18: -6 | X18: 49.57 | Y18: -114.08
A19: 16 | B19: Drumheller | C19: AB | D19: 5050 | E19: -32 | F19: 30 | G19: 14 | H19: 8 | I19: 5 | J19: 7 | K19: 10 | L19: -13 | M19: -8 | N19: -3 | O19: 6 | P19: 11 | Q19: 16 | R19: 19 | S19: 18 | T19: 13 | U19: 5 | V19: -3 | W19: -9 | X19: 51.47 | Y19: -112.7
A20: 17 | B20: Edmonton | C20: AB | D20: 5120 | E20: -30 | F20: 28 | G20: 10 | H20: 10 | I20: 5 | J20: 11 | K20: 12 | L20: -11 | M20: -8 | N20: -3 | O20: 5 | P20: 11 | Q20: 15 | R20: 18 | S20: 17 | T20: 11 | U20: 5 | V20: -4 | W20: -9 | X20: 53.55 | Y20: -113.47
A21: 18 | B21: Edson | C21: AB | D21: 5750 | E21: -34 | F21: 27 | G21: 13 | H21: 9 | I21: 5 | J21: 7 | K21: 8 | L21: -11 | M21: -8 | N21: -4 | O21: 3 | P21: 8 | Q21: 13 | R21: 15 | S21: 14 | T21: 9 | U21: 3 | V21: -6 | W21: -10 | X21: 53.58 | Y21: -116.43
A22: 19 | B22: Embarras Portage | C22: AB | D22: 7100 | E22: -41 | F22: 28 | G22: 11 | H22: 10 | I22: 3 | J22: 10 | K22: 12 | L22: -22 | M22: -17 | N22: -9 | O22: 1 | P22: 9 | Q22: 14 | R22: 17 | S22: 15 | T22: 9 | U22: 1 | V22: -10 | W22: -19 | X22: 58.45 | Y22: -111.47
A23: 20 | B23: Fairview | C23: AB | D23: 5840 | E23: -37 | F23: 27 | G23: 11 | H23: 9 | I23: 4 | J23: 10 | K23: 10 | L23: -14 | M23: -11 | N23: -5 | O23: 4 | P23: 11 | Q23: 14 | R23: 16 | S23: 15 | T23: 10 | U23: 4 | V23: -7 | W23: -12 | X23: 56.07 | Y23: -118.38
A24: 21 | B24: Fort MacLeod | C24: AB | D24: 4600 | E24: -30 | F24: 31 | G24: 15 | H24: 9 | I24: 8 | J24: 21 | K24: 16 | L24: -7 | M24: -4 | N24: 0 | O24: 6 | P24: 11 | Q24: 15 | R24: 18 | S24: 17 | T24: 12 | U24: 7 | V24: -1 | W24: -6 | X24: 49.72 | Y24: -113.42
A25: 22 | B25: Fort McMurray | C25: AB | D25: 6250 | E25: -38 | F25: 28 | G25: 12 | H25: 10 | I25: 4 | J25: 8 | K25: 9 | L25: -18 | M25: -13 | N25: -6 | O25: 3 | P25: 10 | Q25: 15 | R25: 17 | S25: 15 | T25: 10 | U25: 2 | V25: -9 | W25: -15 | X25: 56.73 | Y25: -111.38
A26: 23 | B26: Fort Saskatchewan | C26: AB | D26: 5420 | E26: -32 | F26: 28 | G26: 13 | H26: 10 | I26: 5 | J26: 13 | K26: 12 | L26: -13 | M26: -10 | N26: -4 | O26: 5 | P26: 11 | Q26: 15 | R26: 17 | S26: 16 | T26: 11 | U26: 5 | V26: -6 | W26: -12 | X26: 53.72 | Y26: -113.22
A27: 24 | B27: Fort Vermilion | C27: AB | D27: 6700 | E27: -41 | F27: 28 | G27: 12 | H27: 9 | I27: 4 | J27: 8 | K27: 6 | L27: -22 | M27: -17 | N27: -10 | O27: 2 | P27: 11 | Q27: 15 | R27: 17 | S27: 15 | T27: 9 | U27: 2 | V27: -10 | W27: -20 | X27: 58.4 | Y27: -116
A28: 25 | B28: Grande Prairie | C28: AB | D28: 5790 | E28: -36 | F28: 27 | G28: 12 | H28: 9 | I28: 5 | J28: 9 | K28: 12 | L28: -14 | M28: -11 | N28: -5 | O28: 4 | P28: 10 | Q28: 14 | R28: 16 | S28: 15 | T28: 10 | U28: 4 | V28: -7 | W28: -11 | X28: 55.17 | Y28: -118.8
A29: 26 | B29: Habay | C29: AB | D29: 6750 | E29: -41 | F29: 28 | G29: 13 | H29: 9 | I29: 4 | J29: 8 | K29: 6 | L29: -26 | M29: -20 | N29: -14 | O29: 2 | P29: 11 | Q29: 14 | R29: 15 | S29: 14 | T29: 7 | U29: 2 | V29: -13 | W29: -18 | X29: 58.83 | Y29: -118.73
A30: 27 | B30: Hardisty | C30: AB | D30: 5640 | E30: -33 | F30: 30 | G30: 13 | H30: 9 | I30: 5 | J30: 12 | K30: 13 | L30: -17 | M30: -12 | N30: -7 | O30: 3 | P30: 11 | Q30: 15 | R30: 16 | S30: 17 | T30: 9 | U30: 5 | V30: -6 | W30: -13 | X30: 52.67 | Y30: -111.3
A31: 28 | B31: High River | C31: AB | D31: 4900 | E31: -31 | F31: 28 | G31: 15 | H31: 8 | I31: 6 | J31: 17 | K31: 15 | L31: -8 | M31: -6 | N31: -2 | O31: 4 | P31: 9 | Q31: 13 | R31: 15 | S31: 15 | T31: 10 | U31: 5 | V31: -2 | W31: -7 | X31: 50.58 | Y31: -113.87
A32: 29 | B32: Hinton | C32: AB | D32: 5500 | E32: -34 | F32: 27 | G32: 15 | H32: 8 | I32: 6 | J32: 9 | K32: 8 | L32: -12 | M32: -8 | N32: -4 | O32: 3 | P32: 8 | Q32: 11 | R32: 14 | S32: 13 | T32: 9 | U32: 4 | V32: -6 | W32: -8 | X32: 53.4 | Y32: -117.58
A33: 30 | B33: Jasper | C33: AB | D33: 5300 | E33: -31 | F33: 28 | G33: 12 | H33: 8 | I33: 6 | J33: 9 | K33: 8 | L33: -8 | M33: -5 | N33: -1 | O33: 4 | P33: 9 | Q33: 13 | R33: 15 | S33: 14 | T33: 10 | U33: 4 | V33: -4 | W33: -9 | X33: 52.88 | Y33: -118.08
A34: 31 | B34: Keg River | C34: AB | D34: 6520 | E34: -40 | F34: 28 | G34: 15 | H34: 9 | I34: 4 | J34: 9 | K34: 10 | L34: -19 | M34: -14 | N34: -7 | O34: 3 | P34: 9 | Q34: 14 | R34: 15 | S34: 14 | T34: 9 | U34: 1 | V34: -12 | W34: -16 | X34: 57.75 | Y34: -117.62
A35: 32 | B35: Lac la Biche | C35: AB | D35: 6100 | E35: -35 | F35: 28 | G35: 12 | H35: 10 | I35: 4 | J35: 7 | K35: 9 | L35: -16 | M35: -11 | N35: -6 | O35: 3 | P35: 10 | Q35: 14 | R35: 17 | S35: 16 | T35: 11 | U35: 4 | V35: -6 | W35: -13 | X35: 54.77 | Y35: -111.97
A36: 33 | B36: Lacombe | C36: AB | D36: 5500 | E36: -33 | F36: 28 | G36: 13 | H36: 10 | I36: 5 | J36: 10 | K36: 11 | L36: -13 | M36: -9 | N36: -5 | O36: 4 | P36: 9 | Q36: 13 | R36: 16 | S36: 15 | T36: 10 | U36: 4 | V36: -5 | W36: -9 | X36: 52.47 | Y36: -113.73
A37: 34 | B37: Lethbridge | C37: AB | D37: 4500 | E37: -30 | F37: 31 | G37: 14 | H37: 9 | I37: 8 | J37: 20 | K37: 15 | L37: -6 | M37: -4 | N37: 0 | O37: 6 | P37: 11 | Q37: 15 | R37: 18 | S37: 18 | T37: 13 | U37: 7 | V37: -1 | W37: -5 | X37: 49.7 | Y37: -112.82
A38: 35 | B38: Manning | C38: AB | D38: 6300 | E38: -39 | F38: 27 | G38: 11 | H38: 9 | I38: 4 | J38: 10 | K38: 11 | L38: -18 | M38: -13 | N38: -7 | O38: 3 | P38: 10 | Q38: 14 | R38: 16 | S38: 15 | T38: 10 | U38: 2 | V38: -9 | W38: -14 | X38: 56.92 | Y38: -117.62
A39: 36 | B39: Medicine Hat | C39: AB | D39: 4540 | E39: -31 | F39: 32 | G39: 13 | H39: 8 | I39: 8 | J39: 14 | K39: 13 | L39: -9 | M39: -5 | N39: 0 | O39: 7 | P39: 12 | Q39: 17 | R39: 20 | S39: 19 | T39: 13 | U39: 7 | V39: -2 | W39: -7 | X39: 50.05 | Y39: -110.67
A40: 37 | B40: Peace River | C40: AB | D40: 6050 | E40: -37 | F40: 27 | G40: 12 | H40: 9 | I40: 4 | J40: 12 | K40: 12 | L40: -15 | M40: -12 | N40: -6 | O40: 4 | P40: 10 | Q40: 14 | R40: 16 | S40: 15 | T40: 10 | U40: 3 | V40: -8 | W40: -12 | X40: 56.23 | Y40: -117.28
A41: 38 | B41: Pincher Creek | C41: AB | D41: 4740 | E41: -29 | F41: 29 | G41: 13 | H41: 8 | I41: 6 | J41: 26 | K41: 18 | L41: -6 | M41: -3 | N41: -2 | O41: 4 | P41: 9 | Q41: 13 | R41: 17 | S41: 17 | T41: 12 | U41: 6 | V41: -1 | W41: -4 | X41: 49.48 | Y41: -113.95
A42: 39 | B42: Ranfurly | C42: AB | D42: 5700 | E42: -34 | F42: 29 | G42: 12 | H42: 10 | I42: 5 | J42: 12 | K42: 12 | L42: -14 | M42: -12 | N42: -6 | O42: 4 | P42: 11 | Q42: 15 | R42: 17 | S42: 16 | T42: 10 | U42: 5 | V42: -6 | W42: -13 | X42: 53.42 | Y42: -111.68
A43: 40 | B43: Red Deer | C43: AB | D43: 5550 | E43: -32 | F43: 28 | G43: 13 | H43: 10 | I43: 5 | J43: 12 | K43: 12 | L43: -12 | M43: -9 | N43: -4 | O43: 4 | P43: 10 | Q43: 14 | R43: 16 | S43: 15 | T43: 10 | U43: 4 | V43: -5 | W43: -10 | X43: 52.27 | Y43: -113.8
A44: 41 | B44: Rocky Mountain House | C44: AB | D44: 5640 | E44: -32 | F44: 27 | G44: 13 | H44: 9 | I44: 5 | J44: 7 | K44: 8 | L44: -12 | M44: -9 | N44: -5 | O44: 3 | P44: 8 | Q44: 12 | R44: 15 | S44: 14 | T44: 9 | U44: 3 | V44: -6 | W44: -10 | X44: 52.37 | Y44: -114.92
A45: 42 | B45: Slave Lake | C45: AB | D45: 5850 | E45: -35 | F45: 26 | G45: 11 | H45: 11 | I45: 4 | J45: 15 | K45: 12 | L45: -13 | M45: -10 | N45: -5 | O45: 3 | P45: 9 | Q45: 14 | R45: 16 | S45: 15 | T45: 10 | U45: 3 | V45: -6 | W45: -12 | X45: 55.28 | Y45: -114.77
A46: 43 | B46: Stettler | C46: AB | D46: 5300 | E46: -32 | F46: 30 | G46: 14 | H46: 9 | I46: 5 | J46: 16 | K46: 13 | L46: -13 | M46: -9 | N46: -3 | O46: 5 | P46: 10 | Q46: 14 | R46: 16 | S46: 16 | T46: 11 | U46: 5 | V46: -5 | W46: -11 | X46: 52.32 | Y46: -112.72
A47: 44 | B47: Stony Plain | C47: AB | D47: 5300 | E47: -32 | F47: 28 | G47: 11 | H47: 10 | I47: 5 | J47: 11 | K47: 10 | L47: -12 | M47: -8 | N47: -3 | O47: 5 | P47: 11 | Q47: 15 | R47: 16 | S47: 16 | T47: 11 | U47: 5 | V47: -4 | W47: -10 | X47: 53.53 | Y47: -114
A48: 45 | B48: Suffield | C48: AB | D48: 4770 | E48: -31 | F48: 32 | G48: 15 | H48: 10 | I48: 8 | J48: 18 | K48: 18 | L48: -11 | M48: -7 | N48: -1 | O48: 6 | P48: 12 | Q48: 16 | R48: 19 | S48: 19 | T48: 13 | U48: 7 | V48: -3 | W48: -9 | X48: 50.2 | Y48: -111.17
A49: 46 | B49: Taber | C49: AB | D49: 4580 | E49: -31 | F49: 31 | G49: 15 | H49: 9 | I49: 8 | J49: 19 | K49: 13 | L49: -9 | M49: -4 | N49: -1 | O49: 6 | P49: 12 | Q49: 16 | R49: 19 | S49: 18 | T49: 13 | U49: 7 | V49: -1 | W49: -6 | X49: 49.78 | Y49: -112.15
A50: 47 | B50: Turner Valley | C50: AB | D50: 5220 | E50: -31 | F50: 28 | G50: 15 | H50: 8 | I50: 5 | J50: 17 | K50: 15 | L50: -10 | M50: -7 | N50: -3 | O50: 2 | P50: 7 | Q50: 11 | R50: 13 | S50: 13 | T50: 9 | U50: 4 | V50: -3 | W50: -9 | X50: 50.67 | Y50: -114.28
A51: 48 | B51: Valleyview | C51: AB | D51: 5600 | E51: -37 | F51: 27 | G51: 13 | H51: 9 | I51: 4 | J51: 15 | K51: 13 | L51: -13 | M51: -9 | N51: -2 | O51: 5 | P51: 10 | Q51: 14 | R51: 16 | S51: 15 | T51: 10 | U51: 5 | V51: -4 | W51: -11 | X51: 55.07 | Y51: -117.28
A52: 49 | B52: Vegreville | C52: AB | D52: 5780 | E52: -34 | F52: 29 | G52: 13 | H52: 10 | I52: 5 | J52: 12 | K52: 13 | L52: -15 | M52: -11 | N52: -6 | O52: 4 | P52: 10 | Q52: 14 | R52: 17 | S52: 15 | T52: 10 | U52: 3 | V52: -6 | W52: -11 | X52: 53.5 | Y52: -112.05
A53: 50 | B53: Vermilion | C53: AB | D53: 5740 | E53: -35 | F53: 29 | G53: 13 | H53: 10 | I53: 5 | J53: 12 | K53: 12 | L53: -18 | M53: -14 | N53: -7 | O53: 4 | P53: 11 | Q53: 15 | R53: 16 | S53: 15 | T53: 10 | U53: 4 | V53: -5 | W53: -14 | X53: 53.37 | Y53: -110.85
A54: 51 | B54: Wagner | C54: AB | D54: 5850 | E54: -35 | F54: 26 | G54: 12 | H54: 11 | I54: 4 | J54: 15 | K54: 12 | L54: -13 | M54: -10 | N54: -5 | O54: 3 | P54: 9 | Q54: 14 | R54: 16 | S54: 15 | T54: 10 | U54: 3 | V54: -6 | W54: -12 | X54: 55.35 | Y54: -114.98
A55: 52 | B55: Wainwright | C55: AB | D55: 5700 | E55: -33 | F55: 29 | G55: 12 | H55: 10 | I55: 5 | J55: 12 | K55: 13 | L55: -14 | M55: -9 | N55: -6 | O55: 5 | P55: 10 | Q55: 15 | R55: 18 | S55: 17 | T55: 11 | U55: 4 | V55: -4 | W55: -11 | X55: 52.82 | Y55: -110.87
A56: 53 | B56: Wetaskiwin | C56: AB | D56: 5500 | E56: -33 | F56: 29 | G56: 13 | H56: 10 | I56: 5 | J56: 10 | K56: 11 | L56: -15 | M56: -11 | N56: -6 | O56: 3 | P56: 11 | Q56: 15 | R56: 16 | S56: 16 | T56: 9 | U56: 5 | V56: -6 | W56: -12 | X56: 52.97 | Y56: -113.37
A57: 54 | B57: Whitecourt | C57: AB | D57: 5650 | E57: -33 | F57: 27 | G57: 12 | H57: 11 | I57: 5 | J57: 7 | K57: 8 | L57: -12 | M57: -8 | N57: -3 | O57: 4 | P57: 10 | Q57: 14 | R57: 16 | S57: 14 | T57: 9 | U57: 4 | V57: -7 | W57: -11 | X57: 54.15 | Y57: -115.68
A58: 55 | B58: Wimborne | C58: AB | D58: 5310 | E58: -31 | F58: 29 | G58: 13 | H58: 8 | I58: 5 | J58: 15 | K58: 14 | L58: -13 | M58: -9 | N58: -6 | O58: 2 | P58: 10 | Q58: 14 | R58: 16 | S58: 15 | T58: 10 | U58: 4 | V58: -5 | W58: -9 | X58: 51.87 | Y58: -113.58
A59: 56 | B59: 100 Mile House | C59: BC | D59: 5030 | E59: -30 | F59: 29 | G59: 15 | H59: 7 | I59: 8 | J59: 10 | K59: 8 | L59: -8 | M59: -4 | N59: 0 | O59: 5 | P59: 9 | Q59: 13 | R59: 15 | S59: 15 | T59: 10 | U59: 5 | V59: -2 | W59: -8 | X59: 51.65 | Y59: -121.2833
A60: 57 | B60: Abbotsford | C60: BC | D60: 2860 | E60: -8 | F60: 29 | G60: 11 | H60: 11 | I60: 11 | J60: 10 | K60: 8 | L60: 4 | M60: 5 | N60: 7 | O60: 10 | P60: 13 | Q60: 16 | R60: 18 | S60: 18 | T60: 15 | U60: 11 | V60: 6 | W60: 3 | X60: 49.0517 | Y60: -122.3289
A61: 58 | B61: Agassiz | C61: BC | D61: 2750 | E61: -9 | F61: 31 | G61: 10 | H61: 12 | I61: 11 | J61: 13 | K61: 12 | L61: 3 | M61: 5 | N61: 7 | O61: 11 | P61: 14 | Q61: 16 | R61: 19 | S61: 19 | T61: 16 | U61: 11 | V61: 6 | W61: 4 | X61: 49.23 | Y61: -121.77
A62: 59 | B62: Alberni | C62: BC | D62: 3100 | E62: -5 | F62: 31 | G62: 13 | H62: 9 | I62: 10 | J62: 4 | K62: 9 | L62: 2 | M62: 3 | N62: 6 | O62: 9 | P62: 12 | Q62: 15 | R62: 18 | S62: 18 | T62: 15 | U62: 10 | V62: 5 | W62: 2 | X62: 49.27 | Y62: -124.8
A63: 60 | B63: Ashcroft | C63: BC | D63: 3700 | E63: -24 | F63: 34 | G63: 14 | H63: 9 | I63: 10 | J63: 5 | K63: 10 | L63: -7 | M63: -2 | N63: 4 | O63: 10 | P63: 14 | Q63: 18 | R63: 21 | S63: 20 | T63: 16 | U63: 9 | V63: 0 | W63: -3 | X63: 50.72 | Y63: -121.28
A64: 61 | B64: Bamfield | C64: BC | D64: 3080 | E64: -2 | F64: 23 | G64: 8 | H64: 10 | I64: 11 | J64: 14 | K64: 10 | L64: 5 | M64: 6 | N64: 6 | O64: 8 | P64: 11 | Q64: 13 | R64: 14 | S64: 15 | T64: 14 | U64: 10 | V64: 7 | W64: 5 | X64: 48.83 | Y64: -125.13
A65: 62 | B65: Beatton River | C65: BC | D65: 6300 | E65: -37 | F65: 26 | G65: 13 | H65: 10 | I65: 4 | J65: 4 | K65: 6 | L65: -15 | M65: -10 | N65: -8 | O65: 1 | P65: 7 | Q65: 12 | R65: 14 | S65: 12 | T65: 7 | U65: 1 | V65: -8 | W65: -12 | X65: 57.38 | Y65: -121.4
A66: 63 | B66: Bella Bella | C66: BC | D66: 3180 | E66: -5 | F66: 23 | G66: 8 | H66: 11 | I66: 10 | J66: 15 | K66: 9 | L66: 3 | M66: 4 | N66: 4 | O66: 6 | P66: 10 | Q66: 12 | R66: 14 | S66: 15 | T66: 13 | U66: 9 | V66: 5 | W66: 1 | X66: 52.16 | Y66: -128.14
A67: 64 | B67: Bella Coola | C67: BC | D67: 3560 | E67: -14 | F67: 27 | G67: 11 | H67: 11 | I67: 10 | J67: 8 | K67: 11 | L67: -1 | M67: 1 | N67: 5 | O67: 8 | P67: 12 | Q67: 14 | R67: 17 | S67: 17 | T67: 13 | U67: 8 | V67: 3 | W67: -1 | X67: 52.37 | Y67: -126.75
A68: 65 | B68: Burnaby (Simon Fraser Univ.) | C68: BC | D68: 3100 | E68: -7 | F68: 25 | G68: 7 | H68: 9 | I68: 11 | J68: 12 | K68: 11 | L68: 3 | M68: 4 | N68: 6 | O68: 9 | P68: 12 | Q68: 14 | R68: 17 | S68: 17 | T68: 15 | U68: 10 | V68: 5 | W68: 3 | X68: 49.28 | Y68: -122.92
A69: 66 | B69: Burns Lake | C69: BC | D69: 5450 | E69: -31 | F69: 26 | G69: 16 | H69: 8 | I69: 6 | J69: 5 | K69: 6 | L69: -11 | M69: -7 | N69: -3 | O69: 3 | P69: 8 | Q69: 12 | R69: 13 | S69: 12 | T69: 8 | U69: 3 | V69: -4 | W69: -9 | X69: 54.23 | Y69: -125.75
A70: 67 | B70: Cache Creek | C70: BC | D70: 3700 | E70: -24 | F70: 34 | G70: 16 | H70: 9 | I70: 10 | J70: 5 | K70: 10 | L70: -5 | M70: -1 | N70: 4 | O70: 9 | P70: 13 | Q70: 17 | R70: 20 | S70: 19 | T70: 15 | U70: 8 | V70: 0 | W70: -4 | X70: 50.8 | Y70: -121.32
A71: 68 | B71: Campbell River | C71: BC | D71: 3000 | E71: -5 | F71: 26 | G71: 9 | H71: 10 | I71: 10 | J71: 9 | K71: 9 | L71: 4 | M71: 5 | N71: 6 | O71: 9 | P71: 12 | Q71: 15 | R71: 17 | S71: 17 | T71: 14 | U71: 10 | V71: 6 | W71: 4 | X71: 50.02 | Y71: -125.24
A72: 69 | B72: Carmi | C72: BC | D72: 4750 | E72: -24 | F72: 31 | G72: 19 | H72: 9 | I72: 10 | J72: 5 | K72: 6 | L72: -7 | M72: -3 | N72: 1 | O72: 6 | P72: 10 | Q72: 13 | R72: 16 | S72: 15 | T72: 11 | U72: 5 | V72: -2 | W72: -7 | X72: 49.5 | Y72: -119.12
A73: 70 | B73: Castlegar | C73: BC | D73: 3580 | E73: -18 | F73: 32 | G73: 15 | H73: 10 | I73: 10 | J73: 9 | K73: 8 | L73: -3 | M73: 0 | N73: 4 | O73: 9 | P73: 13 | Q73: 17 | R73: 20 | S73: 20 | T73: 14 | U73: 8 | V73: 2 | W73: -2 | X73: 49.32 | Y73: -117.67
A74: 71 | B74: Chetwynd | C74: BC | D74: 5500 | E74: -35 | F74: 27 | G74: 14 | H74: 9 | I74: 5 | J74: 9 | K74: 8 | L74: -11 | M74: -8 | N74: -2 | O74: 5 | P74: 10 | Q74: 13 | R74: 15 | S74: 15 | T74: 10 | U74: 4 | V74: -6 | W74: -9 | X74: 55.7 | Y74: -121.63
A75: 72 | B75: Chilliwack | C75: BC | D75: 2780 | E75: -9 | F75: 30 | G75: 11 | H75: 11 | I75: 11 | J75: 13 | K75: 12 | L75: 2 | M75: 5 | N75: 7 | O75: 10 | P75: 13 | Q75: 16 | R75: 18 | S75: 18 | T75: 16 | U75: 11 | V75: 6 | W75: 3 | X75: 49.1667 | Y75: -121.95
A76: 73 | B76: Cloverdale | C76: BC | D76: 2700 | E76: -8 | F76: 29 | G76: 10 | H76: 11 | I76: 11 | J76: 9 | K76: 7 | L76: 4 | M76: 5 | N76: 8 | O76: 11 | P76: 14 | Q76: 16 | R76: 18 | S76: 19 | T76: 16 | U76: 11 | V76: 6 | W76: 3 | X76: 49.1 | Y76: -122.7333
A77: 74 | B77: Comox | C77: BC | D77: 3100 | E77: -7 | F77: 27 | G77: 8 | H77: 9 | I77: 10 | J77: 13 | K77: 12 | L77: 4 | M77: 4 | N77: 6 | O77: 9 | P77: 12 | Q77: 15 | R77: 18 | S77: 18 | T77: 14 | U77: 10 | V77: 6 | W77: 4 | X77: 49.68 | Y77: -124.93
A78: 75 | B78: Courtenay | C78: BC | D78: 3100 | E78: -7 | F78: 28 | G78: 8 | H78: 9 | I78: 10 | J78: 13 | K78: 12 | L78: 4 | M78: 4 | N78: 6 | O78: 9 | P78: 12 | Q78: 15 | R78: 18 | S78: 18 | T78: 14 | U78: 10 | V78: 6 | W78: 4 | X78: 49.68 | Y78: -124.98
A79: 76 | B79: Cranbrook | C79: BC | D79: 4400 | E79: -26 | F79: 32 | G79: 13 | H79: 7 | I79: 9 | J79: 6 | K79: 11 | L79: -6 | M79: -3 | N79: 2 | O79: 7 | P79: 11 | Q79: 15 | R79: 19 | S79: 18 | T79: 13 | U79: 6 | V79: -1 | W79: -7 | X79: 49.5 | Y79: -115.77
A80: 77 | B80: Crescent Valley | C80: BC | D80: 3650 | E80: -18 | F80: 31 | G80: 17 | H80: 10 | I80: 10 | J80: 9 | K80: 8 | L80: -4 | M80: -1 | N80: 4 | O80: 8 | P80: 13 | Q80: 16 | R80: 19 | S80: 19 | T80: 14 | U80: 8 | V80: 1 | W80: -3 | X80: 49.45 | Y80: -117.55
A81: 78 | B81: Crofton | C81: BC | D81: 2880 | E81: -4 | F81: 28 | G81: 13 | H81: 10 | I81: 11 | J81: 8 | K81: 10 | L81: 2 | M81: 4 | N81: 5 | O81: 8 | P81: 12 | Q81: 14 | R81: 18 | S81: 18 | T81: 15 | U81: 10 | V81: 6 | W81: 4 | X81: 48.87 | Y81: -123.65
A82: 79 | B82: Dawson Creek | C82: BC | D82: 5900 | E82: -38 | F82: 27 | G82: 13 | H82: 9 | I82: 5 | J82: 10 | K82: 10 | L82: -15 | M82: -11 | N82: -5 | O82: 4 | P82: 9 | Q82: 13 | R82: 15 | S82: 14 | T82: 10 | U82: 4 | V82: -7 | W82: -12 | X82: 55.77 | Y82: -120.23
A83: 80 | B83: Dease Lake | C83: BC | D83: 6730 | E83: -37 | F83: 24 | G83: 11 | H83: 7 | I83: 4 | J83: 7 | K83: 7 | L83: -14 | M83: -12 | N83: -5 | O83: 1 | P83: 7 | Q83: 11 | R83: 13 | S83: 11 | T83: 7 | U83: 0 | V83: -10 | W83: -14 | X83: 58.44 | Y83: -130
A84: 81 | B84: Dog Creek | C84: BC | D84: 4800 | E84: -28 | F84: 29 | G84: 16 | H84: 7 | I84: 6 | J84: 10 | K84: 8 | L84: -9 | M84: -4 | N84: 0 | O84: 7 | P84: 10 | Q84: 14 | R84: 17 | S84: 16 | T84: 14 | U84: 6 | V84: -3 | W84: -5 | X84: 51.58 | Y84: -122.3
A85: 82 | B85: Duncan | C85: BC | D85: 2980 | E85: -6 | F85: 28 | G85: 14 | H85: 10 | I85: 10 | J85: 4 | K85: 9 | L85: 3 | M85: 4 | N85: 6 | O85: 8 | P85: 12 | Q85: 15 | R85: 17 | S85: 17 | T85: 14 | U85: 9 | V85: 5 | W85: 3 | X85: 48.78 | Y85: -123.7
A86: 83 | B86: Elko | C86: BC | D86: 4600 | E86: -28 | F86: 30 | G86: 14 | H86: 9 | I86: 9 | J86: 10 | K86: 8 | L86: -7 | M86: -3 | N86: 1 | O86: 6 | P86: 11 | Q86: 15 | R86: 18 | S86: 18 | T86: 13 | U86: 6 | V86: -1 | W86: -6 | X86: 49.3 | Y86: -115.12
A87: 84 | B87: Fernie | C87: BC | D87: 4750 | E87: -27 | F87: 30 | G87: 15 | H87: 9 | I87: 8 | J87: 10 | K87: 8 | L87: -7 | M87: -4 | N87: 0 | O87: 5 | P87: 10 | Q87: 13 | R87: 16 | S87: 16 | T87: 11 | U87: 5 | V87: -1 | W87: -6 | X87: 49.5 | Y87: -115.07
A88: 85 | B88: Fort Nelson | C88: BC | D88: 6710 | E88: -39 | F88: 28 | G88: 12 | H88: 9 | I88: 4 | J88: 4 | K88: 7 | L88: -21 | M88: -15 | N88: -8 | O88: 3 | P88: 10 | Q88: 15 | R88: 17 | S88: 15 | T88: 9 | U88: 0 | V88: -13 | W88: -18 | X88: 58.83 | Y88: -122.7
A89: 86 | B89: Fort St. John | C89: BC | D89: 5750 | E89: -35 | F89: 26 | G89: 10 | H89: 10 | I89: 5 | J89: 14 | K89: 12 | L89: -13 | M89: -9 | N89: -5 | O89: 4 | P89: 10 | Q89: 14 | R89: 16 | S89: 15 | T89: 10 | U89: 3 | V89: -7 | W89: -10 | X89: 56.25 | Y89: -120.85
A90: 87 | B90: Glacier | C90: BC | D90: 5800 | E90: -27 | F90: 27 | G90: 12 | H90: 8 | I90: 8 | J90: 10 | K90: 8 | L90: -10 | M90: -7 | N90: -2 | O90: 2 | P90: 6 | Q90: 10 | R90: 13 | S90: 13 | T90: 8 | U90: 2 | V90: -5 | W90: -9 | X90: 51.27 | Y90: -117.52
A91: 88 | B91: Gold River | C91: BC | D91: 3230 | E91: -8 | F91: 31 | G91: 13 | H91: 8 | I91: 11 | J91: 4 | K91: 9 | L91: 1 | M91: 3 | N91: 5 | O91: 8 | P91: 12 | Q91: 15 | R91: 18 | S91: 18 | T91: 15 | U91: 9 | V91: 4 | W91: 2 | X91: 49.78 | Y91: -126.05
A92: 89 | B92: Golden | C92: BC | D92: 4750 | E92: -27 | F92: 30 | G92: 14 | H92: 7 | I92: 8 | J92: 3 | K92: 5 | L92: -10 | M92: -5 | N92: 0 | O92: 6 | P92: 11 | Q92: 15 | R92: 17 | S92: 17 | T92: 11 | U92: 5 | V92: -2 | W92: -8 | X92: 51.3 | Y92: -116.97
A93: 90 | B93: Grand Forks | C93: BC | D93: 3820 | E93: -19 | F93: 34 | G93: 16 | H93: 9 | I93: 10 | J93: 9 | K93: 8 | L93: -5 | M93: -1 | N93: 4 | O93: 9 | P93: 13 | Q93: 16 | R93: 20 | S93: 19 | T93: 14 | U93: 7 | V93: 1 | W93: -4 | X93: 49.03 | Y93: -118.45
A94: 91 | B94: Greenwood | C94: BC | D94: 4100 | E94: -20 | F94: 34 | G94: 17 | H94: 9 | I94: 10 | J94: 9 | K94: 8 | L94: -8 | M94: -3 | N94: 1 | O94: 6 | P94: 10 | Q94: 14 | R94: 18 | S94: 17 | T94: 11 | U94: 6 | V94: 0 | W94: -5 | X94: 49.1 | Y94: -118.68
A95: 92 | B95: Haney | C95: BC | D95: 2840 | E95: -9 | F95: 30 | G95: 12 | H95: 11 | I95: 11 | J95: 9 | K95: 7 | L95: 2 | M95: 4 | N95: 7 | O95: 9 | P95: 12 | Q95: 15 | R95: 18 | S95: 18 | T95: 15 | U95: 10 | V95: 5 | W95: 3 | X95: 49.22 | Y95: -122.6
A96: 93 | B96: Hope | C96: BC | D96: 3000 | E96: -13 | F96: 31 | G96: 10 | H96: 10 | I96: 11 | J96: 15 | K96: 13 | L96: 2 | M96: 4 | N96: 7 | O96: 10 | P96: 13 | Q96: 16 | R96: 19 | S96: 19 | T96: 16 | U96: 10 | V96: 5 | W96: 2 | X96: 49.38 | Y96: -121.44
A97: 94 | B97: Jordan River | C97: BC | D97: 2900 | E97: -1 | F97: 22 | G97: 7 | H97: 10 | I97: 12 | J97: 14 | K97: 10 | L97: 6 | M97: 7 | N97: 8 | O97: 10 | P97: 12 | Q97: 13 | R97: 15 | S97: 15 | T97: 14 | U97: 11 | V97: 8 | W97: 6 | X97: 48.42 | Y97: -124.05
A98: 95 | B98: Kamloops | C98: BC | D98: 3450 | E98: -23 | F98: 34 | G98: 13 | H98: 9 | I98: 10 | J98: 10 | K98: 10 | L98: -3 | M98: 0 | N98: 5 | O98: 10 | P98: 15 | Q98: 18 | R98: 21 | S98: 21 | T98: 15 | U98: 8 | V98: 2 | W98: -2 | X98: 50.67 | Y98: -120.32
A99: 96 | B99: Kaslo | C99: BC | D99: 3830 | E99: -17 | F99: 30 | G99: 13 | H99: 9 | I99: 9 | J99: 10 | K99: 8 | L99: -3 | M99: -1 | N99: 3 | O99: 7 | P99: 12 | Q99: 15 | R99: 18 | S99: 18 | T99: 13 | U99: 7 | V99: 2 | W99: -2 | X99: 49.92 | Y99: -116.92
A100: 97 | B100: Kelowna | C100: BC | D100: 3400 | E100: -17 | F100: 33 | G100: 15 | H100: 9 | I100: 11 | J100: 5 | K100: 6 | L100: -3 | M100: -1 | N100: 4 | O100: 8 | P100: 13 | Q100: 17 | R100: 19 | S100: 19 | T100: 14 | U100: 7 | V100: 1 | W100: -3 | X100: 49.88 | Y100: -119.48
A101: 98 | B101: Kimberley | C101: BC | D101: 4650 | E101: -25 | F101: 31 | G101: 16 | H101: 8 | I101: 8 | J101: 6 | K101: 11 | L101: -7 | M101: -4 | N101: 1 | O101: 6 | P101: 11 | Q101: 14 | R101: 18 | S101: 17 | T101: 13 | U101: 6 | V101: -2 | W101: -7 | X101: 49.68 | Y101: -115.98
A102: 99 | B102: Kitimat Plant | C102: BC | D102: 3750 | E102: -16 | F102: 25 | G102: 10 | H102: 8 | I102: 7 | J102: 5 | K102: 7 | L102: -2 | M102: 0 | N102: 4 | O102: 7 | P102: 11 | Q102: 14 | R102: 17 | S102: 17 | T102: 13 | U102: 8 | V102: 2 | W102: -1 | X102: 54.05 | Y102: -128.63
A103: 100 | B103: Kitimat Townsite | C103: BC | D103: 3900 | E103: -16 | F103: 24 | G103: 10 | H103: 8 | I103: 9 | J103: 5 | K103: 7 | L103: -3 | M103: -1 | N103: 3 | O103: 6 | P103: 10 | Q103: 14 | R103: 16 | S103: 16 | T103: 12 | U103: 7 | V103: 2 | W103: -1 | X103: 54.07 | Y103: -128.65
A104: 101 | B104: Ladner | C104: BC | D104: 2600 | E104: -6 | F104: 27 | G104: 7 | H104: 11 | I104: 12 | J104: 11 | K104: 11 | L104: 4 | M104: 5 | N104: 7 | O104: 10 | P104: 13 | Q104: 16 | R104: 18 | S104: 18 | T104: 15 | U104: 10 | V104: 6 | W104: 4 | X104: 49.08 | Y104: -123.08
A105: 102 | B105: Ladysmith | C105: BC | D105: 3000 | E105: -7 | F105: 27 | G105: 12 | H105: 11 | I105: 11 | J105: 8 | K105: 10 | L105: 3 | M105: 4 | N105: 6 | O105: 9 | P105: 12 | Q105: 15 | R105: 18 | S105: 18 | T105: 15 | U105: 10 | V105: 5 | W105: 3 | X105: 48.99 | Y105: -123.82
A106: 103 | B106: Langford | C106: BC | D106: 2750 | E106: -4 | F106: 27 | G106: 10 | H106: 11 | I106: 12 | J106: 10 | K106: 8 | L106: 6 | M106: 6 | N106: 8 | O106: 10 | P106: 12 | Q106: 15 | R106: 16 | S106: 16 | T106: 15 | U106: 11 | V106: 8 | W106: 6 | X106: 48.45 | Y106: -123.5
A107: 104 | B107: Langley | C107: BC | D107: 2700 | E107: -8 | F107: 29 | G107: 11 | H107: 11 | I107: 11 | J107: 9 | K107: 7 | L107: 4 | M107: 5 | N107: 8 | O107: 11 | P107: 14 | Q107: 16 | R107: 18 | S107: 19 | T107: 16 | U107: 11 | V107: 6 | W107: 3 | X107: 49.1 | Y107: -122.65
A108: 105 | B108: Lillooet | C108: BC | D108: 3400 | E108: -21 | F108: 34 | G108: 13 | H108: 9 | I108: 11 | J108: 14 | K108: 23 | L108: -2 | M108: 1 | N108: 5 | O108: 10 | P108: 15 | Q108: 19 | R108: 23 | S108: 22 | T108: 17 | U108: 10 | V108: 3 | W108: -1 | X108: 50.68 | Y108: -121.93
A109: 106 | B109: Lytton | C109: BC | D109: 3300 | E109: -17 | F109: 35 | G109: 12 | H109: 9 | I109: 11 | J109: 14 | K109: 23 | L109: -1 | M109: 2 | N109: 6 | O109: 10 | P109: 15 | Q109: 18 | R109: 22 | S109: 22 | T109: 17 | U109: 10 | V109: 3 | W109: -2 | X109: 50.23 | Y109: -121.57
A110: 107 | B110: Mackenzie | C110: BC | D110: 5550 | E110: -34 | F110: 27 | G110: 12 | H110: 8 | I110: 5 | J110: 7 | K110: 7 | L110: -11 | M110: -7 | N110: -4 | O110: 3 | P110: 9 | Q110: 14 | R110: 15 | S110: 14 | T110: 10 | U110: 3 | V110: -4 | W110: -8 | X110: 55.3 | Y110: -123.08
A111: 108 | B111: Masset | C111: BC | D111: 3700 | E111: -5 | F111: 17 | G111: 7 | H111: 10 | I111: 10 | J111: 14 | K111: 15 | L111: 1 | M111: 3 | N111: 4 | O111: 6 | P111: 8 | Q111: 10 | R111: 13 | S111: 13 | T111: 12 | U111: 9 | V111: 5 | W111: 3 | X111: 54.02 | Y111: -132.1
A112: 109 | B112: McBride | C112: BC | D112: 4980 | E112: -29 | F112: 29 | G112: 14 | H112: 8 | I112: 8 | J112: 8 | K112: 6 | L112: -7 | M112: -4 | N112: 0 | O112: 5 | P112: 9 | Q112: 13 | R112: 15 | S112: 15 | T112: 10 | U112: 5 | V112: -2 | W112: -6 | X112: 53.3 | Y112: -120.17
A113: 110 | B113: McLeod Lake | C113: BC | D113: 5450 | E113: -35 | F113: 27 | G113: 12 | H113: 8 | I113: 5 | J113: 7 | K113: 7 | L113: -11 | M113: -7 | N113: -4 | O113: 3 | P113: 9 | Q113: 14 | R113: 15 | S113: 14 | T113: 10 | U113: 3 | V113: -4 | W113: -8 | X113: 54.98 | Y113: -123.03
A114: 111 | B114: Merritt | C114: BC | D114: 3900 | E114: -24 | F114: 34 | G114: 15 | H114: 9 | I114: 11 | J114: 10 | K114: 10 | L114: -4 | M114: -1 | N114: 4 | O114: 8 | P114: 12 | Q114: 15 | R114: 18 | S114: 18 | T114: 14 | U114: 8 | V114: 1 | W114: -4 | X114: 50.1 | Y114: -120.7833
A115: 112 | B115: Mission City | C115: BC | D115: 2850 | E115: -9 | F115: 30 | G115: 10 | H115: 11 | I115: 11 | J115: 10 | K115: 8 | L115: 2 | M115: 5 | N115: 7 | O115: 10 | P115: 13 | Q115: 15 | R115: 18 | S115: 18 | T115: 16 | U115: 11 | V115: 6 | W115: 3 | X115: 49.13 | Y115: -122.3
A116: 113 | B116: Montrose | C116: BC | D116: 3600 | E116: -16 | F116: 32 | G116: 17 | H116: 10 | I116: 10 | J116: 8 | K116: 8 | L116: -4 | M116: -1 | N116: 3 | O116: 8 | P116: 13 | Q116: 17 | R116: 20 | S116: 20 | T116: 14 | U116: 7 | V116: 2 | W116: -3 | X116: 49.08 | Y116: -117.58
A117: 114 | B117: Nakusp | C117: BC | D117: 3560 | E117: -20 | F117: 31 | G117: 12 | H117: 10 | I117: 9 | J117: 5 | K117: 5 | L117: -2 | M117: 0 | N117: 3 | O117: 8 | P117: 12 | Q117: 16 | R117: 20 | S117: 19 | T117: 14 | U117: 8 | V117: 2 | W117: -1 | X117: 50.23 | Y117: -117.8
A118: 115 | B118: Nanaimo | C118: BC | D118: 3000 | E118: -6 | F118: 27 | G118: 9 | H118: 11 | I118: 11 | J118: 8 | K118: 10 | L118: 2 | M118: 4 | N118: 5 | O118: 8 | P118: 12 | Q118: 14 | R118: 18 | S118: 18 | T118: 15 | U118: 10 | V118: 6 | W118: 4 | X118: 49.17 | Y118: -123.93
A119: 116 | B119: Nelson | C119: BC | D119: 3500 | E119: -18 | F119: 31 | G119: 13 | H119: 10 | I119: 10 | J119: 10 | K119: 8 | L119: -1 | M119: 1 | N119: 4 | O119: 8 | P119: 12 | Q119: 16 | R119: 20 | S119: 20 | T119: 15 | U119: 8 | V119: 3 | W119: -1 | X119: 49.48 | Y119: -117.28
A120: 117 | B120: New Westminster | C120: BC | D120: 2800 | E120: -8 | F120: 29 | G120: 10 | H120: 10 | I120: 11 | J120: 9 | K120: 7 | L120: 2 | M120: 5 | N120: 6 | O120: 9 | P120: 12 | Q120: 15 | R120: 18 | S120: 18 | T120: 15 | U120: 11 | V120: 6 | W120: 4 | X120: 49.22 | Y120: -122.92
A121: 118 | B121: North Vancouver | C121: BC | D121: 2910 | E121: -7 | F121: 26 | G121: 10 | H121: 11 | I121: 11 | J121: 7 | K121: 8 | L121: 4 | M121: 5 | N121: 7 | O121: 10 | P121: 13 | Q121: 15 | R121: 18 | S121: 18 | T121: 15 | U121: 10 | V121: 6 | W121: 3 | X121: 49.32 | Y121: -123.07
A122: 119 | B122: Ocean Falls | C122: BC | D122: 3400 | E122: -10 | F122: 23 | G122: 7 | H122: 10 | I122: 8 | J122: 18 | K122: 13 | L122: 1 | M122: 2 | N122: 4 | O122: 6 | P122: 10 | Q122: 13 | R122: 15 | S122: 16 | T122: 14 | U122: 9 | V122: 4 | W122: 2 | X122: 52.35 | Y122: -127.7
A123: 120 | B123: Osoyoos | C123: BC | D123: 3100 | E123: -14 | F123: 35 | G123: 15 | H123: 10 | I123: 12 | J123: 7 | K123: 6 | L123: -1 | M123: 2 | N123: 6 | O123: 11 | P123: 15 | Q123: 19 | R123: 23 | S123: 22 | T123: 17 | U123: 10 | V123: 3 | W123: -1 | X123: 49.03 | Y123: -119.5
A124: 121 | B124: Parksville | C124: BC | D124: 3200 | E124: -6 | F124: 26 | G124: 9 | H124: 11 | I124: 12 | J124: 8 | K124: 10 | L124: 4 | M124: 5 | N124: 6 | O124: 9 | P124: 12 | Q124: 15 | R124: 18 | S124: 18 | T124: 14 | U124: 10 | V124: 6 | W124: 3 | X124: 49.32 | Y124: -124.33
A125: 122 | B125: Penticton | C125: BC | D125: 3350 | E125: -15 | F125: 33 | G125: 13 | H125: 9 | I125: 11 | J125: 14 | K125: 9 | L125: -1 | M125: 1 | N125: 5 | O125: 9 | P125: 14 | Q125: 18 | R125: 21 | S125: 20 | T125: 15 | U125: 9 | V125: 3 | W125: -1 | X125: 49.5 | Y125: -119.58
A126: 123 | B126: Port Alberni | C126: BC | D126: 3100 | E126: -5 | F126: 31 | G126: 13 | H126: 9 | I126: 10 | J126: 4 | K126: 9 | L126: 2 | M126: 3 | N126: 6 | O126: 9 | P126: 12 | Q126: 15 | R126: 18 | S126: 18 | T126: 15 | U126: 10 | V126: 5 | W126: 2 | X126: 49.2333 | Y126: -124.8
A127: 124 | B127: Port Alice | C127: BC | D127: 3010 | E127: -3 | F127: 26 | G127: 9 | H127: 8 | I127: 11 | J127: 4 | K127: 9 | L127: 4 | M127: 5 | N127: 6 | O127: 8 | P127: 11 | Q127: 13 | R127: 16 | S127: 16 | T127: 14 | U127: 10 | V127: 6 | W127: 4 | X127: 50.38 | Y127: -127.45
A128: 125 | B128: Port Hardy | C128: BC | D128: 3440 | E128: -5 | F128: 20 | G128: 7 | H128: 10 | I128: 10 | J128: 15 | K128: 9 | L128: 4 | M128: 4 | N128: 6 | O128: 7 | P128: 10 | Q128: 12 | R128: 14 | S128: 14 | T128: 12 | U128: 9 | V128: 6 | W128: 4 | X128: 50.7 | Y128: -127.42
A129: 126 | B129: Port McNeill | C129: BC | D129: 3410 | E129: -5 | F129: 22 | G129: 8 | H129: 10 | I129: 10 | J129: 15 | K129: 9 | L129: 4 | M129: 4 | N129: 5 | O129: 8 | P129: 10 | Q129: 12 | R129: 14 | S129: 14 | T129: 13 | U129: 10 | V129: 6 | W129: 4 | X129: 50.58 | Y129: -127.1
A130: 127 | B130: Port Renfrew | C130: BC | D130: 2900 | E130: -3 | F130: 24 | G130: 9 | H130: 9 | I130: 11 | J130: 14 | K130: 10 | L130: 3 | M130: 5 | N130: 6 | O130: 8 | P130: 11 | Q130: 13 | R130: 15 | S130: 15 | T130: 13 | U130: 10 | V130: 6 | W130: 4 | X130: 48.56 | Y130: -124.4
A131: 128 | B131: Powell River | C131: BC | D131: 3100 | E131: -7 | F131: 26 | G131: 8 | H131: 10 | I131: 11 | J131: 7 | K131: 7 | L131: 4 | M131: 5 | N131: 7 | O131: 9 | P131: 13 | Q131: 16 | R131: 18 | S131: 18 | T131: 16 | U131: 11 | V131: 7 | W131: 4 | X131: 49.83 | Y131: -124.52
A132: 129 | B132: Prince George | C132: BC | D132: 4720 | E132: -32 | F132: 28 | G132: 12 | H132: 9 | I132: 6 | J132: 10 | K132: 8 | L132: -8 | M132: -5 | N132: 0 | O132: 5 | P132: 10 | Q132: 14 | R132: 16 | S132: 15 | T132: 10 | U132: 4 | V132: -3 | W132: -7 | X132: 53.92 | Y132: -122.75
A133: 130 | B133: Prince Rupert | C133: BC | D133: 3900 | E133: -13 | F133: 19 | G133: 6 | H133: 9 | I133: 10 | J133: 14 | K133: 10 | L133: 2 | M133: 3 | N133: 4 | O133: 6 | P133: 9 | Q133: 12 | R133: 13 | S133: 14 | T133: 12 | U133: 8 | V133: 4 | W133: 3 | X133: 54.32 | Y133: -130.32
A134: 131 | B134: Princeton | C134: BC | D134: 4250 | E134: -24 | F134: 33 | G134: 16 | H134: 8 | I134: 10 | J134: 2 | K134: 7 | L134: -5 | M134: -3 | N134: 2 | O134: 7 | P134: 11 | Q134: 15 | R134: 19 | S134: 18 | T134: 14 | U134: 6 | V134: -1 | W134: -5 | X134: 49.5 | Y134: -120.51
A135: 132 | B135: Qualicum Beach | C135: BC | D135: 3200 | E135: -7 | F135: 27 | G135: 10 | H135: 11 | I135: 10 | J135: 8 | K135: 10 | L135: 3 | M135: 4 | N135: 6 | O135: 8 | P135: 12 | Q135: 15 | R135: 17 | S135: 17 | T135: 13 | U135: 9 | V135: 5 | W135: 3 | X135: 49.35 | Y135: -124.45
A136: 133 | B136: Queen Charlotte City | C136: BC | D136: 3520 | E136: -6 | F136: 21 | G136: 5 | H136: 9 | I136: 10 | J136: 17 | K136: 11 | L136: 4 | M136: 4 | N136: 5 | O136: 7 | P136: 9 | Q136: 12 | R136: 14 | S136: 15 | T136: 13 | U136: 9 | V136: 6 | W136: 4 | X136: 53.26 | Y136: -132.08
A137: 134 | B137: Quesnel | C137: BC | D137: 4650 | E137: -31 | F137: 30 | G137: 14 | H137: 7 | I137: 6 | J137: 6 | K137: 5 | L137: -7 | M137: -4 | N137: 1 | O137: 6 | P137: 11 | Q137: 15 | R137: 17 | S137: 16 | T137: 11 | U137: 6 | V137: -2 | W137: -6 | X137: 52.98 | Y137: -122.48
A138: 135 | B138: Revelstoke | C138: BC | D138: 4000 | E138: -20 | F138: 31 | G138: 12 | H138: 9 | I138: 9 | J138: 5 | K138: 5 | L138: -4 | M138: -2 | N138: 2 | O138: 8 | P138: 13 | Q138: 16 | R138: 19 | S138: 18 | T138: 13 | U138: 7 | V138: 1 | W138: -3 | X138: 50.98 | Y138: -118.2
A139: 136 | B139: Richmond | C139: BC | D139: 2800 | E139: -7 | F139: 27 | G139: 7 | H139: 11 | I139: 11 | J139: 11 | K139: 11 | L139: 4 | M139: 5 | N139: 7 | O139: 10 | P139: 13 | Q139: 16 | R139: 18 | S139: 18 | T139: 15 | U139: 10 | V139: 6 | W139: 4 | X139: 49.17 | Y139: -123.1
A140: 137 | B140: Salmon Arm | C140: BC | D140: 3650 | E140: -19 | F140: 33 | G140: 14 | H140: 11 | I140: 10 | J140: 4 | K140: 5 | L140: -2 | M140: 0 | N140: 4 | O140: 9 | P140: 13 | Q140: 17 | R140: 21 | S140: 20 | T140: 14 | U140: 8 | V140: 2 | W140: -2 | X140: 50.7 | Y140: -119.28
A141: 138 | B141: Sandspit | C141: BC | D141: 3450 | E141: -4 | F141: 18 | G141: 5 | H141: 9 | I141: 11 | J141: 22 | K141: 16 | L141: 4 | M141: 4 | N141: 5 | O141: 7 | P141: 9 | Q141: 12 | R141: 14 | S141: 15 | T141: 13 | U141: 9 | V141: 6 | W141: 4 | X141: 53.25 | Y141: -131.82
A142: 139 | B142: Sechelt | C142: BC | D142: 2680 | E142: -6 | F142: 27 | G142: 9 | H142: 12 | I142: 12 | J142: 8 | K142: 10 | L142: 4 | M142: 5 | N142: 6 | O142: 9 | P142: 12 | Q142: 14 | R142: 17 | S142: 17 | T142: 14 | U142: 10 | V142: 6 | W142: 5 | X142: 49.47 | Y142: -123.75
A143: 140 | B143: Sidney | C143: BC | D143: 2850 | E143: -4 | F143: 26 | G143: 10 | H143: 10 | I143: 12 | J143: 10 | K143: 8 | L143: 5 | M143: 5 | N143: 7 | O143: 9 | P143: 12 | Q143: 15 | R143: 17 | S143: 17 | T143: 14 | U143: 10 | V143: 6 | W143: 4 | X143: 48.65 | Y143: -123.4
A144: 141 | B144: Smith River | C144: BC | D144: 7100 | E144: -45 | F144: 26 | G144: 11 | H144: 8 | I144: 4 | J144: 5 | K144: 10 | L144: -25 | M144: -16 | N144: -10 | O144: 0 | P144: 7 | Q144: 13 | R144: 14 | S144: 13 | T144: 7 | U144: -1 | V144: -13 | W144: -21 | X144: 59.88 | Y144: -126.43
A145: 142 | B145: Smithers | C145: BC | D145: 5040 | E145: -29 | F145: 26 | G145: 12 | H145: 8 | I145: 6 | J145: 7 | K145: 6 | L145: -8 | M145: -4 | N145: 0 | O145: 5 | P145: 9 | Q145: 13 | R145: 15 | S145: 14 | T145: 10 | U145: 4 | V145: -2 | W145: -7 | X145: 54.7833 | Y145: -127.1667
A146: 143 | B146: Sooke | C146: BC | D146: 2900 | E146: -1 | F146: 21 | G146: 6 | H146: 9 | I146: 11 | J146: 11 | K146: 12 | L146: 5 | M146: 5 | N146: 7 | O146: 8 | P146: 10 | Q146: 12 | R146: 14 | S146: 14 | T146: 13 | U146: 9 | V146: 6 | W146: 4 | X146: 48.38 | Y146: -123.72
A147: 144 | B147: Squamish | C147: BC | D147: 2950 | E147: -9 | F147: 29 | G147: 11 | H147: 11 | I147: 11 | J147: 5 | K147: 6 | L147: 2 | M147: 4 | N147: 6 | O147: 9 | P147: 12 | Q147: 15 | R147: 18 | S147: 18 | T147: 15 | U147: 9 | V147: 4 | W147: 2 | X147: 49.7 | Y147: -123.15
A148: 145 | B148: Stewart | C148: BC | D148: 4350 | E148: -17 | F148: 25 | G148: 9 | H148: 8 | I148: 8 | J148: 3 | K148: 4 | L148: -4 | M148: -1 | N148: 2 | O148: 6 | P148: 10 | Q148: 14 | R148: 15 | S148: 14 | T148: 11 | U148: 6 | V148: 1 | W148: -3 | X148: 55.93 | Y148: -129.98
A149: 146 | B149: Surrey (88 Ave & 156 St.) | C149: BC | D149: 2750 | E149: -8 | F149: 29 | G149: 11 | H149: 11 | I149: 12 | J149: 9 | K149: 7 | L149: 4 | M149: 5 | N149: 8 | O149: 11 | P149: 14 | Q149: 16 | R149: 18 | S149: 19 | T149: 16 | U149: 11 | V149: 6 | W149: 3 | X149: 49.1628 | Y149: -122.7902
A150: 147 | B150: Tahsis | C150: BC | D150: 3150 | E150: -4 | F150: 26 | G150: 12 | H150: 10 | I150: 11 | J150: 4 | K150: 9 | L150: 2 | M150: 4 | N150: 6 | O150: 8 | P150: 12 | Q150: 15 | R150: 18 | S150: 19 | T150: 15 | U150: 10 | V150: 5 | W150: 2 | X150: 49.93 | Y150: -126.65
A151: 148 | B151: Taylor | C151: BC | D151: 5720 | E151: -35 | F151: 26 | G151: 13 | H151: 10 | I151: 5 | J151: 14 | K151: 12 | L151: -13 | M151: -9 | N151: -5 | O151: 4 | P151: 10 | Q151: 14 | R151: 16 | S151: 15 | T151: 10 | U151: 3 | V151: -7 | W151: -10 | X151: 56.2 | Y151: -120.69
A152: 149 | B152: Terrace | C152: BC | D152: 4150 | E152: -19 | F152: 27 | G152: 9 | H152: 8 | I152: 7 | J152: 18 | K152: 12 | L152: -3 | M152: -1 | N152: 2 | O152: 6 | P152: 10 | Q152: 14 | R152: 16 | S152: 16 | T152: 12 | U152: 6 | V152: 1 | W152: -2 | X152: 54.52 | Y152: -128.6
A153: 150 | B153: Tofino | C153: BC | D153: 3150 | E153: -2 | F153: 20 | G153: 8 | H153: 10 | I153: 11 | J153: 10 | K153: 9 | L153: 5 | M153: 5 | N153: 6 | O153: 8 | P153: 10 | Q153: 12 | R153: 14 | S153: 15 | T153: 13 | U153: 10 | V153: 7 | W153: 5 | X153: 49.12 | Y153: -125.88
A154: 151 | B154: Trail | C154: BC | D154: 3600 | E154: -14 | F154: 33 | G154: 14 | H154: 9 | I154: 10 | J154: 8 | K154: 8 | L154: -3 | M154: 0 | N154: 4 | O154: 9 | P154: 13 | Q154: 17 | R154: 20 | S154: 20 | T154: 15 | U154: 8 | V154: 2 | W154: -2 | X154: 49.1 | Y154: -117.7
A155: 152 | B155: Ucluelet | C155: BC | D155: 3120 | E155: -2 | F155: 18 | G155: 5 | H155: 11 | I155: 11 | J155: 18 | K155: 13 | L155: 6 | M155: 6 | N155: 7 | O155: 9 | P155: 11 | Q155: 13 | R155: 14 | S155: 15 | T155: 14 | U155: 11 | V155: 8 | W155: 6 | X155: 48.93 | Y155: -125.55
A156: 153 | B156: Vancouver (city hall) | C156: BC | D156: 2825 | E156: -7 | F156: 28 | G156: 7 | H156: 11 | I156: 11 | J156: 11 | K156: 11 | L156: 3 | M156: 5 | N156: 6 | O156: 9 | P156: 12 | Q156: 15 | R156: 18 | S156: 18 | T156: 15 | U156: 10 | V156: 6 | W156: 4 | X156: 49.25 | Y156: -123.12
A157: 154 | B157: Vancouver (Granville & 41 Ave) | C157: BC | D157: 2925 | E157: -6 | F157: 28 | G157: 9 | H157: 11 | I157: 12 | J157: 11 | K157: 11 | L157: 3 | M157: 5 | N157: 6 | O157: 9 | P157: 12 | Q157: 15 | R157: 18 | S157: 18 | T157: 15 | U157: 10 | V157: 6 | W157: 4 | X157: 49.2343 | Y157: -123.1396
A158: 155 | B158: Vernon | C158: BC | D158: 3600 | E158: -20 | F158: 33 | G158: 13 | H158: 9 | I158: 10 | J158: 10 | K158: 12 | L158: -3 | M158: 0 | N158: 4 | O158: 9 | P158: 13 | Q158: 17 | R158: 21 | S158: 20 | T158: 15 | U158: 8 | V158: 2 | W158: -2 | X158: 50.3 | Y158: -119.27
A159: 156 | B159: Victoria | C159: BC | D159: 2650 | E159: -4 | F159: 24 | G159: 10 | H159: 9 | I159: 12 | J159: 15 | K159: 15 | L159: 6 | M159: 6 | N159: 8 | O159: 10 | P159: 12 | Q159: 15 | R159: 16 | S159: 16 | T159: 15 | U159: 11 | V159: 8 | W159: 6 | X159: 48.43 | Y159: -123.37
A160: 157 | B160: Victoria Gonzales Height | C160: BC | D160: 2700 | E160: -4 | F160: 24 | G160: 7 | H160: 9 | I160: 12 | J160: 15 | K160: 15 | L160: 6 | M160: 6 | N160: 8 | O160: 10 | P160: 12 | Q160: 15 | R160: 16 | S160: 16 | T160: 15 | U160: 11 | V160: 8 | W160: 6 | X160: 48.42 | Y160: -123.32
A161: 158 | B161: Victoria Mt Tolmie | C161: BC | D161: 2700 | E161: -6 | F161: 24 | G161: 9 | H161: 8 | I161: 13 | J161: 7 | K161: 6 | L161: 6 | M161: 6 | N161: 8 | O161: 10 | P161: 13 | Q161: 16 | R161: 19 | S161: 18 | T161: 16 | U161: 11 | V161: 7 | W161: 5 | X161: 48.47 | Y161: -123.33
A162: 159 | B162: West Vancouver | C162: BC | D162: 2950 | E162: -7 | F162: 28 | G162: 9 | H162: 10 | I162: 12 | J162: 5 | K162: 4 | L162: 4 | M162: 5 | N162: 7 | O162: 9 | P162: 12 | Q162: 15 | R162: 18 | S162: 18 | T162: 15 | U162: 10 | V162: 6 | W162: 4 | X162: 49.33 | Y162: -123.17
A163: 160 | B163: Whistler | C163: BC | D163: 4180 | E163: -17 | F163: 30 | G163: 14 | H163: 11 | I163: 9 | J163: 3 | K163: 5 | L163: -3 | M163: -1 | N163: 2 | O163: 6 | P163: 10 | Q163: 13 | R163: 16 | S163: 16 | T163: 12 | U163: 7 | V163: 1 | W163: -3 | X163: 50.12 | Y163: -122.96
A164: 161 | B164: White Rock | C164: BC | D164: 2620 | E164: -5 | F164: 25 | G164: 8 | H164: 13 | I164: 12 | J164: 7 | K164: 5 | L164: 5 | M164: 6 | N164: 8 | O164: 10 | P164: 13 | Q164: 16 | R164: 18 | S164: 18 | T164: 15 | U164: 11 | V164: 7 | W164: 5 | X164: 49.02 | Y164: -122.8
A165: 162 | B165: Williams Lake | C165: BC | D165: 4400 | E165: -30 | F165: 29 | G165: 12 | H165: 7 | I165: 7 | J165: 10 | K165: 8 | L165: -7 | M165: -4 | N165: 0 | O165: 5 | P165: 10 | Q165: 13 | R165: 16 | S165: 15 | T165: 11 | U165: 5 | V165: -3 | W165: -7 | X165: 52.1333 | Y165: -122.15
A166: 163 | B166: Youbou | C166: BC | D166: 3050 | E166: -5 | F166: 31 | G166: 12 | H166: 9 | I166: 10 | J166: 4 | K166: 9 | L166: 3 | M166: 4 | N166: 6 | O166: 8 | P166: 12 | Q166: 15 | R166: 17 | S166: 18 | T166: 15 | U166: 10 | V166: 5 | W166: 3 | X166: 48.88 | Y166: -124.2
A167: 164 | B167: Beausejour | C167: MB | D167: 5680 | E167: -33 | F167: 29 | G167: 13 | H167: 15 | I167: 6 | J167: 13 | K167: 11 | L167: -18 | M167: -14 | N167: -6 | O167: 4 | P167: 12 | Q167: 17 | R167: 19 | S167: 18 | T167: 12 | U167: 5 | V167: -5 | W167: -15 | X167: 50.0667 | Y167: -96.5167
A168: 165 | B168: Boissevain | C168: MB | D168: 5500 | E168: -32 | F168: 30 | G168: 12 | H168: 15 | I168: 6 | J168: 14 | K168: 12 | L168: -17 | M168: -13 | N168: -5 | O168: 4 | P168: 12 | Q168: 17 | R168: 19 | S168: 18 | T168: 13 | U168: 6 | V168: -4 | W168: -13 | X168: 49.2333 | Y168: -100.05
A169: 166 | B169: Brandon | C169: MB | D169: 5760 | E169: -33 | F169: 30 | G169: 13 | H169: 13 | I169: 6 | J169: 15 | K169: 12 | L169: -17 | M169: -13 | N169: -6 | O169: 4 | P169: 11 | Q169: 16 | R169: 18 | S169: 18 | T169: 12 | U169: 4 | V169: -6 | W169: -14 | X169: 49.8333 | Y169: -99.95
A170: 167 | B170: Churchill | C170: MB | D170: 8950 | E170: -38 | F170: 25 | G170: 8 | H170: 10 | I170: -1 | J170: 22 | K170: 18 | L170: -27 | M170: -25 | N170: -19 | O170: -10 | P170: -1 | Q170: 7 | R170: 12 | S170: 12 | T170: 6 | U170: -1 | V170: -13 | W170: -22 | X170: 58.75 | Y170: -94.12
A171: 168 | B171: Dauphin | C171: MB | D171: 5900 | E171: -33 | F171: 30 | G171: 12 | H171: 13 | I171: 5 | J171: 15 | K171: 13 | L171: -16 | M171: -12 | N171: -6 | O171: 4 | P171: 11 | Q171: 16 | R171: 19 | S171: 18 | T171: 12 | U171: 5 | V171: -6 | W171: -13 | X171: 51.15 | Y171: -100.05
A172: 169 | B172: Flin Flon | C172: MB | D172: 6440 | E172: -38 | F172: 27 | G172: 10 | H172: 12 | I172: 4 | J172: 9 | K172: 11 | L172: -20 | M172: -15 | N172: -8 | O172: 2 | P172: 10 | Q172: 16 | R172: 19 | S172: 17 | T172: 10 | U172: 3 | V172: -8 | W172: -18 | X172: 54.77 | Y172: -101.88
A173: 170 | B173: Gimli | C173: MB | D173: 5800 | E173: -34 | F173: 29 | G173: 11 | H173: 15 | I173: 6 | J173: 15 | K173: 13 | L173: -17 | M173: -14 | N173: -7 | O173: 3 | P173: 10 | Q173: 16 | R173: 19 | S173: 18 | T173: 12 | U173: 5 | V173: -5 | W173: -14 | X173: 50.64 | Y173: -96.99
A174: 171 | B174: Island Lake | C174: MB | D174: 6900 | E174: -36 | F174: 27 | G174: 9 | H174: 12 | I174: 4 | J174: 10 | K174: 10 | L174: -22 | M174: -19 | N174: -11 | O174: -1 | P174: 8 | Q174: 14 | R174: 18 | S174: 17 | T174: 10 | U174: 2 | V174: -8 | W174: -17 | X174: 53.8667 | Y174: -94.6667
A175: 172 | B175: Lac du Bonnet | C175: MB | D175: 5730 | E175: -34 | F175: 29 | G175: 12 | H175: 15 | I175: 6 | J175: 8 | K175: 8 | L175: -17 | M175: -13 | N175: -6 | O175: 3 | P175: 10 | Q175: 16 | R175: 19 | S175: 18 | T175: 13 | U175: 5 | V175: -4 | W175: -11 | X175: 50.27 | Y175: -96.06
A176: 173 | B176: Lynn Lake | C176: MB | D176: 7770 | E176: -40 | F176: 27 | G176: 11 | H176: 11 | I176: 2 | J176: 11 | K176: 11 | L176: -24 | M176: -20 | N176: -13 | O176: -3 | P176: 6 | Q176: 13 | R176: 16 | S176: 15 | T176: 8 | U176: -1 | V176: -13 | W176: -21 | X176: 56.85 | Y176: -101.05
A177: 174 | B177: Morden | C177: MB | D177: 5400 | E177: -31 | F177: 30 | G177: 12 | H177: 16 | I177: 7 | J177: 13 | K177: 11 | L177: -16 | M177: -12 | N177: -5 | O177: 5 | P177: 13 | Q177: 18 | R177: 20 | S177: 19 | T177: 13 | U177: 6 | V177: -4 | W177: -12 | X177: 49.1833 | Y177: -98.1
A178: 175 | B178: Neepawa | C178: MB | D178: 5760 | E178: -32 | F178: 29 | G178: 12 | H178: 15 | I178: 6 | J178: 15 | K178: 12 | L178: -17 | M178: -13 | N178: -6 | O178: 3 | P178: 12 | Q178: 17 | R178: 19 | S178: 18 | T178: 12 | U178: 5 | V178: -5 | W178: -14 | X178: 50.2333 | Y178: -99.4667
A179: 176 | B179: Pine Falls | C179: MB | D179: 5900 | E179: -34 | F179: 28 | G179: 12 | H179: 16 | I179: 6 | J179: 9 | K179: 9 | L179: -19 | M179: -15 | N179: -7 | O179: 4 | P179: 12 | Q179: 16 | R179: 19 | S179: 18 | T179: 12 | U179: 5 | V179: -5 | W179: -16 | X179: 50.5667 | Y179: -96.2167
A180: 177 | B180: Portage la Prairie | C180: MB | D180: 5600 | E180: -31 | F180: 30 | G180: 12 | H180: 15 | I180: 6 | J180: 14 | K180: 11 | L180: -15 | M180: -12 | N180: -5 | O180: 5 | P180: 12 | Q180: 17 | R180: 20 | S180: 19 | T180: 12 | U180: 5 | V180: -6 | W180: -13 | X180: 50 | Y180: -98.29
A181: 178 | B181: Rivers | C181: MB | D181: 5840 | E181: -34 | F181: 29 | G181: 14 | H181: 15 | I181: 6 | J181: 16 | K181: 15 | L181: -14 | M181: -14 | N181: -5 | O181: 5 | P181: 13 | Q181: 17 | R181: 19 | S181: 17 | T181: 12 | U181: 4 | V181: -6 | W181: -14 | X181: 50.0333 | Y181: -100.2333
A182: 179 | B182: Sandilands | C182: MB | D182: 5650 | E182: -32 | F182: 29 | G182: 13 | H182: 15 | I182: 6 | J182: 15 | K182: 13 | L182: -17 | M182: -12 | N182: -5 | O182: 4 | P182: 12 | Q182: 17 | R182: 19 | S182: 18 | T182: 12 | U182: 5 | V182: -6 | W182: -13 | X182: 49.36 | Y182: -96.3
A183: 180 | B183: Selkirk | C183: MB | D183: 5700 | E183: -33 | F183: 29 | G183: 12 | H183: 15 | I183: 6 | J183: 13 | K183: 11 | L183: -17 | M183: -13 | N183: -6 | O183: 4 | P183: 12 | Q183: 17 | R183: 20 | S183: 19 | T183: 13 | U183: 6 | V183: -5 | W183: -14 | X183: 50.15 | Y183: -96.8667
A184: 181 | B184: Split Lake | C184: MB | D184: 7900 | E184: -38 | F184: 27 | G184: 11 | H184: 11 | I184: 1 | J184: 13 | K184: 13 | L184: -24 | M184: -21 | N184: -13 | O184: -3 | P184: 6 | Q184: 13 | R184: 16 | S184: 15 | T184: 8 | U184: 0 | V184: -13 | W184: -22 | X184: 56.25 | Y184: -96.1
A185: 182 | B185: Steinbach | C185: MB | D185: 5700 | E185: -33 | F185: 29 | G185: 13 | H185: 15 | I185: 6 | J185: 16 | K185: 14 | L185: -17 | M185: -13 | N185: -6 | O185: 4 | P185: 12 | Q185: 17 | R185: 19 | S185: 18 | T185: 12 | U185: 5 | V185: -5 | W185: -14 | X185: 49.5333 | Y185: -96.6833
A186: 183 | B186: Swan River | C186: MB | D186: 6100 | E186: -34 | F186: 29 | G186: 13 | H186: 14 | I186: 5 | J186: 12 | K186: 10 | L186: -17 | M186: -14 | N186: -8 | O186: 3 | P186: 10 | Q186: 15 | R186: 18 | S186: 17 | T186: 12 | U186: 4 | V186: -6 | W186: -13 | X186: 52.14 | Y186: -101.27
A187: 184 | B187: The Pas | C187: MB | D187: 6480 | E187: -36 | F187: 28 | G187: 10 | H187: 13 | I187: 5 | J187: 13 | K187: 13 | L187: -19 | M187: -16 | N187: -9 | O187: 1 | P187: 9 | Q187: 15 | R187: 18 | S187: 17 | T187: 11 | U187: 3 | V187: -8 | W187: -16 | X187: 53.87 | Y187: -101.25
A188: 185 | B188: Thompson | C188: MB | D188: 7600 | E188: -40 | F188: 27 | G188: 13 | H188: 11 | I188: 2 | J188: 11 | K188: 11 | L188: -24 | M188: -20 | N188: -12 | O188: -2 | P188: 6 | Q188: 13 | R188: 16 | S188: 15 | T188: 8 | U188: 0 | V188: -12 | W188: -21 | X188: 55.79 | Y188: -97.86
A189: 186 | B189: Virden | C189: MB | D189: 5620 | E189: -33 | F189: 30 | G189: 13 | H189: 15 | I189: 6 | J189: 16 | K189: 15 | L189: -17 | M189: -12 | N189: -5 | O189: 4 | P189: 12 | Q189: 17 | R189: 19 | S189: 18 | T189: 12 | U189: 5 | V189: -5 | W189: -14 | X189: 49.86 | Y189: -100.93
A190: 187 | B190: Winnipeg | C190: MB | D190: 5670 | E190: -33 | F190: 30 | G190: 12 | H190: 15 | I190: 6 | J190: 18 | K190: 15 | L190: -16 | M190: -13 | N190: -6 | O190: 4 | P190: 12 | Q190: 17 | R190: 20 | S190: 19 | T190: 13 | U190: 5 | V190: -5 | W190: -13 | X190: 49.89 | Y190: -97.15
A191: 188 | B191: Alma | C191: NB | D191: 4500 | E191: -21 | F191: 26 | G191: 10 | H191: 12 | I191: 7 | J191: 18 | K191: 16 | L191: -7 | M191: -7 | N191: -2 | O191: 4 | P191: 9 | Q191: 14 | R191: 17 | S191: 17 | T191: 13 | U191: 8 | V191: 3 | W191: -4 | X191: 45.6 | Y191: -64.95
A192: 189 | B192: Bathurst | C192: NB | D192: 5020 | E192: -23 | F192: 30 | G192: 11 | H192: 13 | I192: 7 | J192: 17 | K192: 12 | L192: -11 | M192: -10 | N192: -4 | O192: 2 | P192: 10 | Q192: 16 | R192: 19 | S192: 18 | T192: 13 | U192: 7 | V192: 1 | W192: -8 | X192: 47.6 | Y192: -65.65
A193: 190 | B193: Campbellton | C193: NB | D193: 5500 | E193: -26 | F193: 29 | G193: 11 | H193: 14 | I193: 7 | J193: 16 | K193: 12 | L193: -13 | M193: -10 | N193: -4 | O193: 2 | P193: 9 | Q193: 16 | R193: 19 | S193: 17 | T193: 12 | U193: 6 | V193: 0 | W193: -9 | X193: 48 | Y193: -66.67
A194: 191 | B194: Edmundston | C194: NB | D194: 5320 | E194: -27 | F194: 28 | G194: 12 | H194: 14 | I194: 7 | J194: 13 | K194: 9 | L194: -13 | M194: -12 | N194: -4 | O194: 2 | P194: 10 | Q194: 16 | R194: 19 | S194: 17 | T194: 12 | U194: 6 | V194: -1 | W194: -10 | X194: 47.37 | Y194: -68.33
A195: 192 | B195: Fredericton | C195: NB | D195: 4670 | E195: -24 | F195: 29 | G195: 12 | H195: 14 | I195: 8 | J195: 13 | K195: 10 | L195: -10 | M195: -8 | N195: -2 | O195: 4 | P195: 11 | Q195: 16 | R195: 19 | S195: 19 | T195: 14 | U195: 8 | V195: 2 | W195: -6 | X195: 45.95 | Y195: -66.65
A196: 193 | B196: Gagetown | C196: NB | D196: 4460 | E196: -24 | F196: 29 | G196: 11 | H196: 14 | I196: 8 | J196: 14 | K196: 11 | L196: -9 | M196: -7 | N196: -2 | O196: 5 | P196: 11 | Q196: 16 | R196: 20 | S196: 19 | T196: 14 | U196: 8 | V196: 2 | W196: -5 | X196: 45.79 | Y196: -66.16
A197: 194 | B197: Grand Falls | C197: NB | D197: 5300 | E197: -27 | F197: 28 | G197: 11 | H197: 14 | I197: 7 | J197: 13 | K197: 9 | L197: -13 | M197: -11 | N197: -5 | O197: 3 | P197: 11 | Q197: 15 | R197: 18 | S197: 17 | T197: 12 | U197: 6 | V197: -1 | W197: -10 | X197: 47.05 | Y197: -67.73
A198: 195 | B198: Miramichi | C198: NB | D198: 4950 | E198: -24 | F198: 30 | G198: 11 | H198: 13 | I198: 7 | J198: 14 | K198: 12 | L198: -10 | M198: -9 | N198: -3 | O198: 3 | P198: 10 | Q198: 15 | R198: 19 | S198: 18 | T198: 13 | U198: 7 | V198: 0 | W198: -8 | X198: 47.03 | Y198: -65.47
A199: 196 | B199: Moncton | C199: NB | D199: 4680 | E199: -23 | F199: 28 | G199: 11 | H199: 13 | I199: 8 | J199: 19 | K199: 13 | L199: -9 | M199: -8 | N199: -3 | O199: 3 | P199: 10 | Q199: 15 | R199: 19 | S199: 18 | T199: 14 | U199: 8 | V199: 2 | W199: -5 | X199: 46.1 | Y199: -64.78
A200: 197 | B200: Oromocto | C200: NB | D200: 4650 | E200: -24 | F200: 29 | G200: 11 | H200: 14 | I200: 8 | J200: 13 | K200: 11 | L200: -9 | M200: -8 | N200: -2 | O200: 5 | P200: 11 | Q200: 16 | R200: 19 | S200: 19 | T200: 14 | U200: 8 | V200: 2 | W200: -5 | X200: 45.84 | Y200: -66.48
... 483 more rows

Sheet Wall_R_value
A1: No. | B1: Wall Type | C1: R value | D1: RSI
A2: 1 | B2: Wall Type 1 | C2: 5 | D2: =C2*0.176 -> 0.88
A3: 2 | B3: Wall Type 2 | C3: 10 | D3: =C3*0.176 -> 1.76
A4: 3 | B4: Wall Type 3 | C4: 15 | D4: 2.64
A5: 4 | B5: Wall Type 4 | C5: 20 | D5: 3.52
A6: 5 | B6: Wall Type 5 | C6: 25 | D6: 4.4
A7: 6 | B7: Wall Type 6 | C7: 30 | D7: 5.28
A8: 7 | B8: Wall Type 7 | C8: 35 | D8: 6.16
A9: 8 | B9: Wall Type 8 | C9: 40 | D9: 7.04
A10: 9 | B10: Wall Type 9 | C10: 45 | D10: 7.92
A11: 10 | B11: Wall Type 10 | C11: 50 | D11: 8.8
A12: 11 | B12: Wall Type 11 | C12: 55 | D12: 9.68
A13: 12 | B13: Wall Type 12 | C13: 60 | D13: 10.56

Sheet WindowData
A1: No. | B1: Window Type | C1: R value | D1: RSI | E1: Solar heat gain co.
C2: w/m2.degC | D2: btu/sqft.F | E2: SHGC
A3: 1 | B3: Window Type 1 | C3: =D3*0.175 -> 0.175 | D3: 1 | E3: 0.65
A4: 2 | B4: Window Type 2 | C4: =D4*0.175 -> 0.35 | D4: 2 | E4: 0.65
A5: 3 | B5: Window Type 3 | C5: 0.525 | D5: 3 | E5: 0.65
A6: 4 | B6: Window Type 4 | C6: 0.7 | D6: 4 | E6: 0.65
A7: 5 | B7: Window Type 5 | C7: 0.875 | D7: 5 | E7: 0.65
A8: 6 | B8: Window Type 6 | C8: 1.05 | D8: 6 | E8: 0.65
A9: 7 | B9: Window Type 7 | C9: 1.225 | D9: 7 | E9: 0.65
A10: 8 | B10: Window Type 8 | C10: 1.4 | D10: 8 | E10: 0.65
A11: 9 | B11: Window Type 9 | C11: 1.575 | D11: 9 | E11: 0.65
A12: 10 | B12: Window Type 10 | C12: 1.75 | D12: 10 | E12: 0.65
A13: 11 | B13: Window Type 1 | C13: =D13*0.175 -> 0.175 | D13: 1 | E13: 0.4
A14: 12 | B14: Window Type 2 | C14: 0.35 | D14: 2 | E14: 0.4
A15: 13 | B15: Window Type 3 | C15: 0.525 | D15: 3 | E15: 0.4
A16: 14 | B16: Window Type 4 | C16: 0.7 | D16: 4 | E16: 0.4
A17: 15 | B17: Window Type 5 | C17: 0.875 | D17: 5 | E17: 0.4
A18: 16 | B18: Window Type 6 | C18: 1.05 | D18: 6 | E18: 0.4
A19: 17 | B19: Window Type 7 | C19: 1.225 | D19: 7 | E19: 0.4
A20: 18 | B20: Window Type 8 | C20: 1.4 | D20: 8 | E20: 0.4
A21: 19 | B21: Window Type 9 | C21: 1.575 | D21: 9 | E21: 0.4
A22: 20 | B22: Window Type 10 | C22: 1.75 | D22: 10 | E22: 0.4

Sheet RoofData
A1: No. | B1: Wall Type | C1: R value | D1: RSI
A2: 1 | B2: Roof Type 1 | C2: 5 | D2: =C2*0.176 -> 0.88
A3: 2 | B3: Roof Type 2 | C3: 10 | D3: =C3*0.176 -> 1.76
A4: 3 | B4: Roof Type 3 | C4: 15 | D4: 2.64
A5: 4 | B5: Roof Type 4 | C5: 20 | D5: 3.52
A6: 5 | B6: Roof Type 5 | C6: 25 | D6: 4.4
A7: 6 | B7: Roof Type 6 | C7: 30 | D7: 5.28
A8: 7 | B8: Roof Type 7 | C8: 35 | D8: 6.16
A9: 8 | B9: Roof Type 8 | C9: 40 | D9: 7.04
A10: 9 | B10: Roof Type 9 | C10: 45 | D10: 7.92
A11: 10 | B11: Roof Type 10 | C11: 50 | D11: 8.8
A12: 11 | B12: Roof Type 11 | C12: 55 | D12: 9.68
A13: 12 | B13: Roof Type 12 | C13: 60 | D13: 10.56
